Workbook

Sheet Contents
F2: =Workbook.Title -> MDS Capacity Model
A4: Information
A6: Title | B6: MDS Capacity Model
A7: Project case code | B7: 1213-PR-001639
A8: Status | B8: Approved for release
A9: Author | B9: Ofcom
A11: Confidentiality status | B11: Approved for release
A14: Contents
A16: Sheet | B16: Description | D16: Status | E16: Notes
A17: Contents | B17: This contents sheet | D17: Approved for release
A18: Instructions | B18: Instructions for running the model | D18: Approved for release
A19: Assumptions | B19: Sets out all assumptions used | D19: Approved for release
A20: Projections | B20: Projects key values to 2030 | D20: Approved for release
A21: Spectrum Opt | B21: Optimises spectrum mix between indoors/outdoors | D21: Approved for release
A22: Capacity Model | B22: Calculation sheet | D22: Approved for release
A24: Note
A26: As explained in the accompanying consultation document (see, in particular, paragraphs A7.2 and A7.3), the purpose of our modelling was to give a high level illustration of how mobile network capacity may develop in the next 10 – 20 years. The modelling approach that we have adopted for this consultation is highly simplified and depends on forecasts of the future that are highly uncertain. Therefore, the assumptions and results of this broad brush analysis should not be treated as determinative as to our prioritisation of bands, being for illustrative purposive only. In addition, any inconsistency between this modelling and prior analysis does not mean necessarily that Ofcom has changed its view, nor should the assumptions used in this analysis be taken to be Ofcom’s considered view on these matters.
A28: Terms and conditions
A30: The terms and conditions on which OFCOM is making available the MDS Capacity Model are set out below.
A32: The MDS Capacity model was developed to illustrate how mobile network capacity may develop over the next 10 - 20 years.
A34: All right, title and interest in the provided model (the ‘MDS Capacity Model’) constructed in Excel are owned by OFCOM. Such title and interest is protected by intellectual property laws. While you may freely use the MDS Capacity Model for the purposes for which it is provided, as set out in the accompanying model documentation, it is not to be modified in any way or used for commercial gain or otherwise without the prior written permission of OFCOM.
A36: No representation or warranty is given as to the accuracy, completeness or correctness of the MDS Capacity Model and it is provided 'as is'. It is provided without any representation or endorsement made and without warranty of any kind, whether express or implied, including but not limited to the implied warranties of satisfactory quality, fitness for a particular purpose, non-infringement, compatibility, security and accuracy.
A38: OFCOM does not accept any responsibility for any loss, disruption or damage to your data or your computer system which may occur whilst using the MDS Capacity Model or material derived from the MDS Capacity Model. OFCOM does not warrant that the functions contained in the MDS Capacity Model will be uninterrupted or error free. Also, OFCOM does not warrant that defects will be corrected, or that the MDS Capacity Modell provided is free of viruses.
A40: In no event will OFCOM be liable for any loss or damage including, without limitation, indirect or consequential loss or damage, or any loss or damages whatsoever arising from use or loss of use of, data or profits arising out of or in connection with the use or otherwise of the provided MDS Capacity Model. By using this MDS Capacity Model, you agree to the above.
A42: These Terms and Conditions shall be covered by and construed in accordance with the laws of England and Wales. Any dispute arising under these Terms and Conditions shall be subject to the exclusive jurisdiction of the Courts of England and Wales

Sheet Version History (hidden)
D2: Version Histrory
A4: History
A6: Version | B6: Date | C6: Author | D6: Details of modifications introduced

Sheet Quality Assurance (hidden)
D2: Quality Assurance
A4: Workbook QA
A6: Verified by | B6: Enter name of reviewer
A7: Date | B7: Enter date review completed
A8: Version | B8: Enter version of workbook checked
A9: Status | B9: QA completed but issues to resolve
A11: Type of QA | B11: Self-check by author | C11: Yes
B12: Internal QA - informal | C12: Yes
B13: Internal QA - formal | C13: Yes
B14: External QA | C14: Yes
A16: Objective of QA | B16: Check input data | C16: Yes
B17: Check calculations | C17: Yes
B18: Check methodology | C18: Yes
B19: Check implementation | C19: Yes
A21: QA results delivery format | B21: Report | C21: Yes
B22: Presentation | C22: Yes
B23: Notes to spreadsheet | C23: Yes
A25: QA notes
A27: Sheet | B27: Issue | C27: Details | D27: Status (issue resolved?)

Sheet Style Guidelines (hidden)
H2: Style Guidelines
A3: NB Use Window Unfreeze Panes (on each worksheet) to have row 1 scroll with the rest of the worksheet
A5: Styles
B8: Input | C8: 100 | E8: An input to the model that it is expected the user will change (change at will)
B10: Output | C10: 100 | E10: A key result from this part of the model (in particular one that will be used elsewhere in the model)
B12: Highlight | C12: 100 | E12: A cell that is highlighted for uncertainty
B14: Note or Source | C14: Note | E14: A note (NB smaller than standard font size)
B16: Un-format | E16: Going back to default Excel formatting
B18: Advanced user styles
B20: Input assumption | C20: 100 | E20: An input to the model that it is expected the user will change (change at will)
B22: Input Data | C22: 100 | E22: A piece of real data (only change if you have better data)
B24: Checksum | C24: 0 | E24: A side calculation intended solely to cross check a result (and which therefore should not be referenced anywhere else in the model)
B26: Note | C26: Note | E26: A note (NB smaller than standard font size)
B28: Source | C28: Source | E28: A source
B30: Named range | C30: Name | E30: An Excel Name applying to one or more adjacent cells (use Insert Name Create to actually create the Excel Names)
B32: H1 | C32: Title | E32: Heading level 1
B34: H2 | C34: Title | E34: Heading level 2
B36: H3 | C36: Title | E36: Heading level 3
B38: H4 | C38: Title | E38: Heading level 4

Sheet Instructions
A1: Information
B4: To run the model: 1. Select the modelling year on the Assumptions! sheet cell B4 2. On the Capacity Model! sheet add any additional spectrum bands to cells E5:E9 and J5:J9 to model the capacity impact of a spectrum increase in the modelling year 3. On the Spectrum Opt! sheet click spectrum optimisation button in top right corner 4. On the Capacity Model! sheet Cells B13:H17 give the capacity in 2012. Cells B20:H24 give the capacity in the modelling year with the only the spectrum outlined in the Assumptions! sheet, cells B27:H31 give this capacity relative to the capacity in 2012. Cells B34:H38 give the capacity in the modelling year with the base spectrum plus the spectrum increase, cells B41:H45 give this capacity relative to 2012. Cells B48:H52 give the increase in capacity as a result of the spectrum increase. 5. Cells B56:L148 are used for plotting graphs; change the modelling year accordingly and paste values from the cells indicated to update the results. 6. After changing any of the assumptions you will need to re-run the spectrum optimisation macro (see step 3).
B17: Key:
D18: Input
D19: Output
D20: Paste Values
D21: Note or source

Sheet Assumptions
A1: Assumptions
A3: Number of Starting Sites | B3: 18000
A4: Modelling year | B4: 2030
A6: Single User Throughput | B6: 0 - 50% | E6: 50 - 80% | H6: 80 - 90% | K6: 90 - 100%
B7: Out-to-Out | C7: Out-to-In | E7: Out-to-Out | F7: Out-to-In | H7: Out-to-Out | I7: Out-to-In | K7: Out-to-Out | L7: Out-to-In | N7: Average frequency (GHz)
A8: Sub 1 GHz | B8: =IF($B$3=12000,B74,B69) -> 8.162822456 | C8: =IF($B$3=12000,C74,C69) -> 8.033289504 | E8: =IF($B$3=12000,E74,E69) -> 8.107727533 | F8: 7.666757454 | H8: 8.501479963 | I8: 7.680242842 | K8: 9.064641807 | L8: 7.754783914 | N8: 0.5
A9: 1 - 2 GHz | B9: =IF($B$3=12000,B75,B70) -> 8.11198732 | C9: 7.219378243 | E9: =IF($B$3=12000,E75,E70) -> 7.971445079 | F9: 6.247690953 | H9: 8.2324925 | I9: 5.892392816 | K9: 8.614025583 | L9: 5.611684305 | N9: 1.5
A10: 2 - 3 GHz | B10: =IF($B$3=12000,B76,B71) -> 8.072851857 | C10: 6.552583797 | E10: =IF($B$3=12000,E76,E71) -> 7.868350571 | F10: 5.372677038 | H10: 8.04719304 | I10: 4.99314953 | K10: 8.340710891 | L10: 4.61020195 | N10: 2.5
A11: 3 - 4 GHz | B11: =GROWTH(B$8:B$10,$N$8:$N$10,$N11) -> 8.026351308 | C11: =GROWTH(C$8:C$10,$N$8:$N$10,$N11) -> 5.908189701 | E11: =GROWTH(E$8:E$10,$N$8:$N$10,$N11) -> 7.746244327 | F11: =GROWTH(F$8:F$10,$N$8:$N$10,$N11) -> 4.457448597 | H11: =GROWTH(H$8:H$10,$N$8:$N$10,$N11) -> 7.816997689 | I11: =GROWTH(I$8:I$10,$N$8:$N$10,$N11) -> 3.959861762 | K11: =GROWTH(K$8:K$10,$N$8:$N$10,$N11) -> 7.975765524 | L11: =GROWTH(L$8:L$10,$N$8:$N$10,$N11) -> 3.480256153 | N11: 3.5
A12: 4 - 6 GHz | B12: =GROWTH(B$8:B$10,$N$8:$N$10,$N12) -> 7.959909661 | C12: =GROWTH(C$8:C$10,$N$8:$N$10,$N12) -> 5.071002273 | E12: =GROWTH(E$8:E$10,$N$8:$N$10,$N12) -> 7.574075119 | F12: =GROWTH(F$8:F$10,$N$8:$N$10,$N12) -> 3.414055696 | H12: =GROWTH(H$8:H$10,$N$8:$N$10,$N12) -> 7.501573978 | I12: =GROWTH(I$8:I$10,$N$8:$N$10,$N12) -> 2.867013513 | K12: =GROWTH(K$8:K$10,$N$8:$N$10,$N12) -> 7.493102839 | L12: =GROWTH(L$8:L$10,$N$8:$N$10,$N12) -> 2.356263723 | N12: 5
A14: Sub 1 GHz | B14: =B79 -> 8.047524533 | C14: =C79 -> 4.404733442 | E14: =E79 -> 7.109592219 | F14: =F79 -> 2.99922027 | H14: 6.578322297 | I14: 2.495168648 | K14: 8.485062606 | L14: 4.108412387 | N14: 0.5
A15: 1 - 2 GHz | B15: =B80 -> 6.447212763 | C15: 1.893437483 | E15: =E80 -> 5.062167959 | F15: 1.186919953 | H15: 4.501883859 | I15: 0.9975674868 | K15: 6.43154568 | L15: 1.71814032 | N15: 1.5
A16: 2 - 3 GHz | B16: =B81 -> 5.687362454 | C16: 1.276461092 | E16: =E81 -> 4.279010566 | F16: 0.7654500805 | H16: 3.761111462 | I16: 0.6619260482 | K16: 5.615070172 | L16: 1.093894061 | N16: 2.5
A17: 3 - 4 GHz | B17: =GROWTH(B$14:B$16,$N$14:$N$16,$N17) -> 4.705043794 | C17: =GROWTH(C$14:C$16,$N$14:$N$16,$N17) -> 0.6375007175 | E17: =GROWTH(E$14:E$16,$N$14:$N$16,$N17) -> 3.226068125 | F17: =GROWTH(F$14:F$16,$N$14:$N$16,$N17) -> 0.3564708863 | H17: =GROWTH(H$14:H$16,$N$14:$N$16,$N17) -> 2.750909287 | I17: =GROWTH(I$14:I$16,$N$14:$N$16,$N17) -> 0.3133238502 | K17: =GROWTH(K$14:K$16,$N$14:$N$16,$N17) -> 4.461442871 | L17: =GROWTH(L$14:L$16,$N$14:$N$16,$N17) -> 0.5262642589 | N17: 3.5
A18: 4 - 6 GHz | B18: =GROWTH(B$14:B$16,$N$14:$N$16,$N18) -> 3.626603848 | C18: =GROWTH(C$14:C$16,$N$14:$N$16,$N18) -> 0.2517947324 | E18: =GROWTH(E$14:E$16,$N$14:$N$16,$N18) -> 2.204436201 | F18: =GROWTH(F$14:F$16,$N$14:$N$16,$N18) -> 0.1279986676 | H18: =GROWTH(H$14:H$16,$N$14:$N$16,$N18) -> 1.808743827 | I18: =GROWTH(I$14:I$16,$N$14:$N$16,$N18) -> 0.115817885 | K18: =GROWTH(K$14:K$16,$N$14:$N$16,$N18) -> 3.273410257 | L18: =GROWTH(L$14:L$16,$N$14:$N$16,$N18) -> 0.1950652021 | N18: 5
B20: Unit | C20: 2012 | D20: 2030 | E20: Annual Growth
A21: Spectral efficiency (Source: Real Wireless) | B21: bps/Hz | C21: 1.64 | D21: 10.2 | E21: =((D21/C21)^(1/18))-1 -> 0.1068724386
A23: Number of Macro Sites | C23: 2012 | D23: 2020 | E23: Annual Growth
A24: 0 - 50% | B24: # | C24: =IF($B$3=12000,$B86,$C86) -> 7181 | D24: =C24*((1+E24)^8) -> 7775.994003 | E24: 0.01
A25: 50 - 80% | B25: # | C25: =IF($B$3=12000,$B87,$C87) -> 5473 | D25: =C25*((1+E25)^8) -> 5926.47475 | E25: 0.01
A26: 80 - 90% | B26: # | C26: =IF($B$3=12000,$B88,$C88) -> 2094 | D26: =C26*((1+E26)^8) -> 2267.501942 | E26: 0.01
A27: 90 - 100% | C27: =IF($B$3=12000,$B89,$C89) -> 3252 | D27: =C27*((1+E27)^8) -> 3521.450007 | E27: 0.01
A28: Number of Small Cells
A29: 0 - 50% | B29: # | C29: =C24*($C$34*(B99/B94)+(1-$C$34)*(B100/B95)) -> 5695.516995 | D29: =C29*((1+E29)^8) -> 12208.8465 | E29: 0.1
A30: 50 - 80% | B30: # | C30: =C25*(B100/B95) -> 241.1013216 | D30: =C30*((1+E30)^8) -> 516.822095 | E30: 0.1
A31: 80 - 90% | B31: # | C31: =C26*(B100/B95) -> 92.24669604 | D31: =C31*((1+E31)^8) -> 197.7389854 | E31: 0.1
A32: 90 - 100% | B32: # | C32: =C31 -> 92.24669604 | D32: =C32*((1+E32)^8) -> 197.7389854 | E32: 0.1
A34: Proportion of the 0 - 50% population that is urban | B34: % | C34: 0.2
A36: Proportion of indoor users who offload | C36: 2012 | D36: 2020 | E36: 2030
A37: 0 - 50% | B37: % | C37: 0.5 | D37: 0.8 | E37: 0.9
A38: 50 - 80% | B38: % | C38: 0.5 | D38: 0.7 | E38: 0.8
A39: 80 - 90% | B39: % | C39: 0.5 | D39: 0.6 | E39: 0.7
A40: 90 - 100% | B40: % | C40: 0.5 | D40: 0.6 | E40: 0.7
A42: Share of mobile traffic that is indoors | B42: % | C42: 0.75
A44: Population - Inputs from 4G Technical Model
A45: 0 - 50% | B45: # | C45: 28588215
A46: 50 - 80% | B46: # | C46: 17162838
A47: 80 - 90% | B47: # | C47: 5648553
A48: 90 - 100% | B48: # | C48: =58791867-SUM(C45:C47) -> 7392261
A50: Ratio of macro to small cell sectors | B50: # | C50: 3
A52: Spectrum Portfolio | D52: MHz available for downlink in:
A53: Frequency band | B53: Frequency Group | C53: Use | D53: 2012 | E53: 2013 | F53: 2014 | G53: 2015 | H53: 2016 | I53: 2017 | J53: 2018 | K53: 2019 | L53: 2020
A54: 800 MHz | B54: Sub 1 GHz | C54: Macro | D54: 0 | E54: 30 | F54: 30 | G54: 30 | H54: 30 | I54: 30 | J54: 30 | K54: 30 | L54: 30
A55: 900 MHz | B55: Sub 1 GHz | C55: Macro | D55: 10 | E55: 10 | F55: 10 | G55: 10 | H55: 15 | I55: 20 | J55: 25 | K55: 30 | L55: 30
A56: 1800 MHz | B56: 1 - 2 GHz | C56: Macro | D56: 22 | E56: 22 | F56: 22 | G56: 22 | H56: 36 | I56: 46 | J56: 56 | K56: 66 | L56: 72
A57: 2100 MHz | B57: 2 - 3 GHz | C57: Both | D57: 60 | E57: 60 | F57: 60 | G57: 60 | H57: 60 | I57: 60 | J57: 60 | K57: 60 | L57: 60
A58: 2600 MHz (paired) | B58: 2 - 3 GHz | C58: Both | D58: 0 | E58: 70 | F58: 70 | G58: 70 | H58: 70 | I58: 70 | J58: 70 | K58: 70 | L58: 70
A59: 2600 MHz (unpaired) | B59: 2 - 3 GHz | C59: Both | D59: 0 | E59: 28 | F59: 28 | G59: 28 | H59: 28 | I59: 28 | J59: 28 | K59: 28 | L59: 28
A60: 2300 MHz (unpaired) | B60: 2 - 3 GHz | C60: Small Cell | D60: 0 | E60: 0 | F60: 0 | G60: 28 | H60: 28 | I60: 28 | J60: 28 | K60: 28 | L60: 28
A61: 3400 - 3600 MHz | B61: 3 - 4 GHz | C61: Small Cell | D61: 0 | E61: 0 | F61: 0 | G61: 133 | H61: 133 | I61: 133 | J61: 133 | K61: 133 | L61: 133
A62: 700 MHz | B62: Sub 1 GHz | C62: Macro | D62: 0 | E62: 0 | F62: 0 | G62: 0 | H62: 0 | I62: 0 | J62: 0 | K62: 0 | L62: 30
A65: Average maximum single user throughput to a user (Mbps) - Inputs from 4G Technical Model
B67: 0 to 50% | E67: 50 to 80% | H67: 80 to 90% | K67: 90 to 100%
A68: 18000 Macro Sites | B68: Outdoor | C68: Deep | E68: Outdoor | F68: Deep | H68: Outdoor | I68: Deep | K68: Outdoor | L68: Deep
A69: 800 MHz | B69: 8.162822456 | C69: 8.033289504 | E69: 8.107727533 | F69: 7.666757454 | H69: 8.501479963 | I69: 7.680242842 | K69: 9.064641807 | L69: 7.754783914
A70: 1800 MHz | B70: 8.11198732 | C70: 7.219378243 | E70: 7.971445079 | F70: 6.247690953 | H70: 8.2324925 | I70: 5.892392816 | K70: 8.614025583 | L70: 5.611684305
A71: 2600 MHz | B71: 8.072851857 | C71: 6.552583797 | E71: 7.868350571 | F71: 5.372677038 | H71: 8.04719304 | I71: 4.99314953 | K71: 8.340710891 | L71: 4.61020195
A73: 12000 Macro Sites
A74: 800 MHz | B74: 7.707984042 | C74: 7.496109611 | E74: 7.693963974 | F74: 7.056135817 | H74: 8.382095567 | I74: 7.205154676 | K74: 8.881698026 | L74: 7.084661934
A75: 1800 MHz | B75: 7.656876221 | C75: 6.471478844 | E75: 7.509387139 | F75: 5.450937953 | H75: 8.001442518 | I75: 5.196174119 | K75: 8.224381223 | L75: 4.797197429
A76: 2600 MHz | B76: 7.611310962 | C76: 5.720221906 | E76: 7.371754328 | F76: 4.546482185 | H76: 7.752290655 | I76: 4.280803342 | K76: 7.853795489 | L76: 3.83932655
A78: 18000 Small Cell Sites
A79: 800 MHz | B79: 8.047524533 | C79: 4.404733442 | E79: 7.109592219 | F79: 2.99922027 | H79: 6.578322297 | I79: 2.495168648 | K79: 8.485062606 | L79: 4.108412387
A80: 1800 MHz | B80: 6.447212763 | C80: 1.893437483 | E80: 5.062167959 | F80: 1.186919953 | H80: 4.501883859 | I80: 0.9975674868 | K80: 6.43154568 | L80: 1.71814032
A81: 2600 MHz | B81: 5.687362454 | C81: 1.276461092 | E81: 4.279010566 | F81: 0.7654500805 | H81: 3.761111462 | I81: 0.6619260482 | K81: 5.615070172 | L81: 1.093894061
A83: Site Numbers - Inputs from 4G Technical Model
B84: Total Network Size:
A85: Number of Macro Sites | B85: 12000 | C85: 18000
A86: 0 - 50% | B86: 4820 | C86: 7181
A87: 50 - 80% | B87: 3655 | C87: 5473
A88: 80 - 90% | B88: 1359 | C88: 2094
A89: 90 - 100% | B89: 2166 | C89: 3252
A92: Real Wireless Site Number Estimates
A93: Macro Sites | B93: 2012 | C93: 2030
A94: Urban | B94: 95 | C94: 108
A95: Suburban | B95: 227 | C95: 240
A96: Rural | B96: 157 | C96: 192
A98: Small Cell Sites
A99: Urban | B99: 360 | C99: 426
A100: Suburban | B100: 10 | C100: 80
A101: Rural | B101: 7 | C101: 27

Sheet Projections
A1: Projections
B3: Unit | C3: 2012 | D3: 2013 | E3: 2014 | F3: 2015 | G3: 2016 | H3: 2017 | I3: 2018 | J3: 2019 | K3: 2020 | L3: 2021 | M3: 2022 | N3: 2023 | O3: 2024 | P3: 2025 | Q3: 2026 | R3: 2027 | S3: 2028 | T3: 2029 | U3: 2030 | W3: Modelling year
A5: Spectral Efficiency
A6: Macro cells | B6: bps/Hz | C6: =Assumptions!C21 -> 1.64 | D6: =C6*((Assumptions!$D$21/Assumptions!$C$21)^(1/18)) -> 1.815270799 | E6: =D6*((Assumptions!$D$21/Assumptions!$C$21)^(1/18)) -> 2.009273216 | F6: =E6*((Assumptions!$D$21/Assumptions!$C$21)^(1/18)) -> 2.224009145 | G6: =F6*((Assumptions!$D$21/Assumptions!$C$21)^(1/18)) -> 2.461694426 | H6: =G6*((Assumptions!$D$21/Assumptions!$C$21)^(1/18)) -> 2.724781712 | I6: =H6*((Assumptions!$D$21/Assumptions!$C$21)^(1/18)) -> 3.015985778 | J6: =I6*((Assumptions!$D$21/Assumptions!$C$21)^(1/18)) -> 3.338311533 | K6: =J6*((Assumptions!$D$21/Assumptions!$C$21)^(1/18)) -> 3.695085027 | L6: =K6*((Assumptions!$D$21/Assumptions!$C$21)^(1/18)) -> 4.089987775 | M6: =L6*((Assumptions!$D$21/Assumptions!$C$21)^(1/18)) -> 4.527094742 | N6: =M6*((Assumptions!$D$21/Assumptions!$C$21)^(1/18)) -> 5.010916397 | O6: =N6*((Assumptions!$D$21/Assumptions!$C$21)^(1/18)) -> 5.546445252 | P6: =O6*((Assumptions!$D$21/Assumptions!$C$21)^(1/18)) -> 6.139207382 | Q6: =P6*((Assumptions!$D$21/Assumptions!$C$21)^(1/18)) -> 6.795319446 | R6: =Q6*((Assumptions!$D$21/Assumptions!$C$21)^(1/18)) -> 7.521551806 | S6: =R6*((Assumptions!$D$21/Assumptions!$C$21)^(1/18)) -> 8.32539839 | T6: =S6*((Assumptions!$D$21/Assumptions!$C$21)^(1/18)) -> 9.215154018 | U6: =T6*((Assumptions!$D$21/Assumptions!$C$21)^(1/18)) -> 10.2 | W6: =INDEX(C6:U6,MATCH(Assumptions!$B$4,Projections!$C$3:$U$3,0)) -> 10.2
A7: Small cells | B7: bps/Hz | C7: =C6/Assumptions!$C$50 -> 0.5466666667 | D7: =D6/Assumptions!$C$50 -> 0.6050902664 | E7: =E6/Assumptions!$C$50 -> 0.6697577388 | F7: =F6/Assumptions!$C$50 -> 0.7413363816 | G7: =G6/Assumptions!$C$50 -> 0.8205648085 | H7: =H6/Assumptions!$C$50 -> 0.9082605706 | I7: =I6/Assumptions!$C$50 -> 1.005328593 | J7: =J6/Assumptions!$C$50 -> 1.112770511 | K7: =K6/Assumptions!$C$50 -> 1.231695009 | L7: =L6/Assumptions!$C$50 -> 1.363329258 | M7: =M6/Assumptions!$C$50 -> 1.509031581 | N7: =N6/Assumptions!$C$50 -> 1.670305466 | O7: =O6/Assumptions!$C$50 -> 1.848815084 | P7: =P6/Assumptions!$C$50 -> 2.046402461 | Q7: =Q6/Assumptions!$C$50 -> 2.265106482 | R7: =R6/Assumptions!$C$50 -> 2.507183935 | S7: =S6/Assumptions!$C$50 -> 2.775132797 | T7: =T6/Assumptions!$C$50 -> 3.071718006 | U7: =U6/Assumptions!$C$50 -> 3.4 | W7: =INDEX(C7:U7,MATCH(Assumptions!$B$4,Projections!$C$3:$U$3,0)) -> 3.4
A9: Number of Macro Sites
A10: 0 - 50% | B10: # | C10: =Assumptions!C24 -> 7181 | D10: =C10*((Assumptions!$D24/Assumptions!$C24)^(1/8)) -> 7252.81 | E10: =D10*((Assumptions!$D24/Assumptions!$C24)^(1/8)) -> 7325.3381 | F10: =E10*((Assumptions!$D24/Assumptions!$C24)^(1/8)) -> 7398.591481 | G10: =F10*((Assumptions!$D24/Assumptions!$C24)^(1/8)) -> 7472.577396 | H10: =G10*((Assumptions!$D24/Assumptions!$C24)^(1/8)) -> 7547.30317 | I10: =H10*((Assumptions!$D24/Assumptions!$C24)^(1/8)) -> 7622.776201 | J10: =I10*((Assumptions!$D24/Assumptions!$C24)^(1/8)) -> 7699.003963 | K10: =J10*((Assumptions!$D24/Assumptions!$C24)^(1/8)) -> 7775.994003 | L10: =K10*((Assumptions!$D24/Assumptions!$C24)^(1/8)) -> 7853.753943 | M10: =L10*((Assumptions!$D24/Assumptions!$C24)^(1/8)) -> 7932.291483 | N10: =M10*((Assumptions!$D24/Assumptions!$C24)^(1/8)) -> 8011.614397 | O10: =N10*((Assumptions!$D24/Assumptions!$C24)^(1/8)) -> 8091.730541 | P10: =O10*((Assumptions!$D24/Assumptions!$C24)^(1/8)) -> 8172.647847 | Q10: =P10*((Assumptions!$D24/Assumptions!$C24)^(1/8)) -> 8254.374325 | R10: =Q10*((Assumptions!$D24/Assumptions!$C24)^(1/8)) -> 8336.918069 | S10: =R10*((Assumptions!$D24/Assumptions!$C24)^(1/8)) -> 8420.287249 | T10: =S10*((Assumptions!$D24/Assumptions!$C24)^(1/8)) -> 8504.490122 | U10: =T10*((Assumptions!$D24/Assumptions!$C24)^(1/8)) -> 8589.535023 | W10: =INDEX(C10:U10,MATCH(Assumptions!$B$4,Projections!$C$3:$U$3,0)) -> 8589.535023
A11: 50 - 80% | B11: # | C11: =Assumptions!C25 -> 5473 | D11: =C11*((Assumptions!$D25/Assumptions!$C25)^(1/8)) -> 5527.73 | E11: =D11*((Assumptions!$D25/Assumptions!$C25)^(1/8)) -> 5583.0073 | F11: =E11*((Assumptions!$D25/Assumptions!$C25)^(1/8)) -> 5638.837373 | G11: =F11*((Assumptions!$D25/Assumptions!$C25)^(1/8)) -> 5695.225747 | H11: =G11*((Assumptions!$D25/Assumptions!$C25)^(1/8)) -> 5752.178004 | I11: =H11*((Assumptions!$D25/Assumptions!$C25)^(1/8)) -> 5809.699784 | J11: =I11*((Assumptions!$D25/Assumptions!$C25)^(1/8)) -> 5867.796782 | K11: =J11*((Assumptions!$D25/Assumptions!$C25)^(1/8)) -> 5926.47475 | L11: =K11*((Assumptions!$D25/Assumptions!$C25)^(1/8)) -> 5985.739497 | M11: =L11*((Assumptions!$D25/Assumptions!$C25)^(1/8)) -> 6045.596892 | N11: =M11*((Assumptions!$D25/Assumptions!$C25)^(1/8)) -> 6106.052861 | O11: =N11*((Assumptions!$D25/Assumptions!$C25)^(1/8)) -> 6167.11339 | P11: =O11*((Assumptions!$D25/Assumptions!$C25)^(1/8)) -> 6228.784524 | Q11: =P11*((Assumptions!$D25/Assumptions!$C25)^(1/8)) -> 6291.072369 | R11: =Q11*((Assumptions!$D25/Assumptions!$C25)^(1/8)) -> 6353.983093 | S11: =R11*((Assumptions!$D25/Assumptions!$C25)^(1/8)) -> 6417.522924 | T11: =S11*((Assumptions!$D25/Assumptions!$C25)^(1/8)) -> 6481.698153 | U11: =T11*((Assumptions!$D25/Assumptions!$C25)^(1/8)) -> 6546.515134 | W11: =INDEX(C11:U11,MATCH(Assumptions!$B$4,Projections!$C$3:$U$3,0)) -> 6546.515134
A12: 80 - 90% | B12: # | C12: =Assumptions!C26 -> 2094 | D12: =C12*((Assumptions!$D26/Assumptions!$C26)^(1/8)) -> 2114.94 | E12: =D12*((Assumptions!$D26/Assumptions!$C26)^(1/8)) -> 2136.0894 | F12: =E12*((Assumptions!$D26/Assumptions!$C26)^(1/8)) -> 2157.450294 | G12: =F12*((Assumptions!$D26/Assumptions!$C26)^(1/8)) -> 2179.024797 | H12: =G12*((Assumptions!$D26/Assumptions!$C26)^(1/8)) -> 2200.815045 | I12: =H12*((Assumptions!$D26/Assumptions!$C26)^(1/8)) -> 2222.823195 | J12: =I12*((Assumptions!$D26/Assumptions!$C26)^(1/8)) -> 2245.051427 | K12: =J12*((Assumptions!$D26/Assumptions!$C26)^(1/8)) -> 2267.501942 | L12: =K12*((Assumptions!$D26/Assumptions!$C26)^(1/8)) -> 2290.176961 | M12: =L12*((Assumptions!$D26/Assumptions!$C26)^(1/8)) -> 2313.078731 | N12: =M12*((Assumptions!$D26/Assumptions!$C26)^(1/8)) -> 2336.209518 | O12: =N12*((Assumptions!$D26/Assumptions!$C26)^(1/8)) -> 2359.571613 | P12: =O12*((Assumptions!$D26/Assumptions!$C26)^(1/8)) -> 2383.167329 | Q12: =P12*((Assumptions!$D26/Assumptions!$C26)^(1/8)) -> 2406.999003 | R12: =Q12*((Assumptions!$D26/Assumptions!$C26)^(1/8)) -> 2431.068993 | S12: =R12*((Assumptions!$D26/Assumptions!$C26)^(1/8)) -> 2455.379682 | T12: =S12*((Assumptions!$D26/Assumptions!$C26)^(1/8)) -> 2479.933479 | U12: =T12*((Assumptions!$D26/Assumptions!$C26)^(1/8)) -> 2504.732814 | W12: =INDEX(C12:U12,MATCH(Assumptions!$B$4,Projections!$C$3:$U$3,0)) -> 2504.732814
A13: 90 - 100% | B13: # | C13: =Assumptions!C27 -> 3252 | D13: =C13*((Assumptions!$D27/Assumptions!$C27)^(1/8)) -> 3284.52 | E13: =D13*((Assumptions!$D27/Assumptions!$C27)^(1/8)) -> 3317.3652 | F13: =E13*((Assumptions!$D27/Assumptions!$C27)^(1/8)) -> 3350.538852 | G13: =F13*((Assumptions!$D27/Assumptions!$C27)^(1/8)) -> 3384.044241 | H13: =G13*((Assumptions!$D27/Assumptions!$C27)^(1/8)) -> 3417.884683 | I13: =H13*((Assumptions!$D27/Assumptions!$C27)^(1/8)) -> 3452.06353 | J13: =I13*((Assumptions!$D27/Assumptions!$C27)^(1/8)) -> 3486.584165 | K13: =J13*((Assumptions!$D27/Assumptions!$C27)^(1/8)) -> 3521.450007 | L13: =K13*((Assumptions!$D27/Assumptions!$C27)^(1/8)) -> 3556.664507 | M13: =L13*((Assumptions!$D27/Assumptions!$C27)^(1/8)) -> 3592.231152 | N13: =M13*((Assumptions!$D27/Assumptions!$C27)^(1/8)) -> 3628.153463 | O13: =N13*((Assumptions!$D27/Assumptions!$C27)^(1/8)) -> 3664.434998 | P13: =O13*((Assumptions!$D27/Assumptions!$C27)^(1/8)) -> 3701.079348 | Q13: =P13*((Assumptions!$D27/Assumptions!$C27)^(1/8)) -> 3738.090141 | R13: =Q13*((Assumptions!$D27/Assumptions!$C27)^(1/8)) -> 3775.471043 | S13: =R13*((Assumptions!$D27/Assumptions!$C27)^(1/8)) -> 3813.225753 | T13: =S13*((Assumptions!$D27/Assumptions!$C27)^(1/8)) -> 3851.358011 | U13: =T13*((Assumptions!$D27/Assumptions!$C27)^(1/8)) -> 3889.871591 | W13: =INDEX(C13:U13,MATCH(Assumptions!$B$4,Projections!$C$3:$U$3,0)) -> 3889.871591
A15: Number of Small Cells
A16: 0 - 50% | B16: # | C16: =Assumptions!C29 -> 5695.516995 | D16: =C16*((Assumptions!$D29/Assumptions!$C29)^(1/8)) -> 6265.068695 | E16: =D16*((Assumptions!$D29/Assumptions!$C29)^(1/8)) -> 6891.575564 | F16: =E16*((Assumptions!$D29/Assumptions!$C29)^(1/8)) -> 7580.733121 | G16: =F16*((Assumptions!$D29/Assumptions!$C29)^(1/8)) -> 8338.806433 | H16: =G16*((Assumptions!$D29/Assumptions!$C29)^(1/8)) -> 9172.687076 | I16: =H16*((Assumptions!$D29/Assumptions!$C29)^(1/8)) -> 10089.95578 | J16: =I16*((Assumptions!$D29/Assumptions!$C29)^(1/8)) -> 11098.95136 | K16: =J16*((Assumptions!$D29/Assumptions!$C29)^(1/8)) -> 12208.8465 | L16: =K16*((Assumptions!$D29/Assumptions!$C29)^(1/8)) -> 13429.73115 | M16: =L16*((Assumptions!$D29/Assumptions!$C29)^(1/8)) -> 14772.70426 | N16: =M16*((Assumptions!$D29/Assumptions!$C29)^(1/8)) -> 16249.97469 | O16: =N16*((Assumptions!$D29/Assumptions!$C29)^(1/8)) -> 17874.97216 | P16: =O16*((Assumptions!$D29/Assumptions!$C29)^(1/8)) -> 19662.46937 | Q16: =P16*((Assumptions!$D29/Assumptions!$C29)^(1/8)) -> 21628.71631 | R16: =Q16*((Assumptions!$D29/Assumptions!$C29)^(1/8)) -> 23791.58794 | S16: =R16*((Assumptions!$D29/Assumptions!$C29)^(1/8)) -> 26170.74674 | T16: =S16*((Assumptions!$D29/Assumptions!$C29)^(1/8)) -> 28787.82141 | U16: =T16*((Assumptions!$D29/Assumptions!$C29)^(1/8)) -> 31666.60355 | W16: =INDEX(C16:U16,MATCH(Assumptions!$B$4,Projections!$C$3:$U$3,0)) -> 31666.60355
A17: 50 - 80% | B17: # | C17: =Assumptions!C30 -> 241.1013216 | D17: =C17*((Assumptions!$D30/Assumptions!$C30)^(1/8)) -> 265.2114537 | E17: =D17*((Assumptions!$D30/Assumptions!$C30)^(1/8)) -> 291.7325991 | F17: =E17*((Assumptions!$D30/Assumptions!$C30)^(1/8)) -> 320.905859 | G17: =F17*((Assumptions!$D30/Assumptions!$C30)^(1/8)) -> 352.9964449 | H17: =G17*((Assumptions!$D30/Assumptions!$C30)^(1/8)) -> 388.2960894 | I17: =H17*((Assumptions!$D30/Assumptions!$C30)^(1/8)) -> 427.1256984 | J17: =I17*((Assumptions!$D30/Assumptions!$C30)^(1/8)) -> 469.8382682 | K17: =J17*((Assumptions!$D30/Assumptions!$C30)^(1/8)) -> 516.822095 | L17: =K17*((Assumptions!$D30/Assumptions!$C30)^(1/8)) -> 568.5043045 | M17: =L17*((Assumptions!$D30/Assumptions!$C30)^(1/8)) -> 625.354735 | N17: =M17*((Assumptions!$D30/Assumptions!$C30)^(1/8)) -> 687.8902085 | O17: =N17*((Assumptions!$D30/Assumptions!$C30)^(1/8)) -> 756.6792293 | P17: =O17*((Assumptions!$D30/Assumptions!$C30)^(1/8)) -> 832.3471523 | Q17: =P17*((Assumptions!$D30/Assumptions!$C30)^(1/8)) -> 915.5818675 | R17: =Q17*((Assumptions!$D30/Assumptions!$C30)^(1/8)) -> 1007.140054 | S17: =R17*((Assumptions!$D30/Assumptions!$C30)^(1/8)) -> 1107.85406 | T17: =S17*((Assumptions!$D30/Assumptions!$C30)^(1/8)) -> 1218.639466 | U17: =T17*((Assumptions!$D30/Assumptions!$C30)^(1/8)) -> 1340.503412 | W17: =INDEX(C17:U17,MATCH(Assumptions!$B$4,Projections!$C$3:$U$3,0)) -> 1340.503412
A18: 80 - 90% | B18: # | C18: =Assumptions!C31 -> 92.24669604 | D18: =C18*((Assumptions!$D31/Assumptions!$C31)^(1/8)) -> 101.4713656 | E18: =D18*((Assumptions!$D31/Assumptions!$C31)^(1/8)) -> 111.6185022 | F18: =E18*((Assumptions!$D31/Assumptions!$C31)^(1/8)) -> 122.7803524 | G18: =F18*((Assumptions!$D31/Assumptions!$C31)^(1/8)) -> 135.0583877 | H18: =G18*((Assumptions!$D31/Assumptions!$C31)^(1/8)) -> 148.5642264 | I18: =H18*((Assumptions!$D31/Assumptions!$C31)^(1/8)) -> 163.4206491 | J18: =I18*((Assumptions!$D31/Assumptions!$C31)^(1/8)) -> 179.762714 | K18: =J18*((Assumptions!$D31/Assumptions!$C31)^(1/8)) -> 197.7389854 | L18: =K18*((Assumptions!$D31/Assumptions!$C31)^(1/8)) -> 217.5128839 | M18: =L18*((Assumptions!$D31/Assumptions!$C31)^(1/8)) -> 239.2641723 | N18: =M18*((Assumptions!$D31/Assumptions!$C31)^(1/8)) -> 263.1905895 | O18: =N18*((Assumptions!$D31/Assumptions!$C31)^(1/8)) -> 289.5096485 | P18: =O18*((Assumptions!$D31/Assumptions!$C31)^(1/8)) -> 318.4606133 | Q18: =P18*((Assumptions!$D31/Assumptions!$C31)^(1/8)) -> 350.3066747 | R18: =Q18*((Assumptions!$D31/Assumptions!$C31)^(1/8)) -> 385.3373421 | S18: =R18*((Assumptions!$D31/Assumptions!$C31)^(1/8)) -> 423.8710764 | T18: =S18*((Assumptions!$D31/Assumptions!$C31)^(1/8)) -> 466.258184 | U18: =T18*((Assumptions!$D31/Assumptions!$C31)^(1/8)) -> 512.8840024 | W18: =INDEX(C18:U18,MATCH(Assumptions!$B$4,Projections!$C$3:$U$3,0)) -> 512.8840024
A19: 90 - 100% | B19: # | C19: =Assumptions!C32 -> 92.24669604 | D19: =C19*((Assumptions!$D32/Assumptions!$C32)^(1/8)) -> 101.4713656 | E19: =D19*((Assumptions!$D32/Assumptions!$C32)^(1/8)) -> 111.6185022 | F19: =E19*((Assumptions!$D32/Assumptions!$C32)^(1/8)) -> 122.7803524 | G19: =F19*((Assumptions!$D32/Assumptions!$C32)^(1/8)) -> 135.0583877 | H19: =G19*((Assumptions!$D32/Assumptions!$C32)^(1/8)) -> 148.5642264 | I19: =H19*((Assumptions!$D32/Assumptions!$C32)^(1/8)) -> 163.4206491 | J19: =I19*((Assumptions!$D32/Assumptions!$C32)^(1/8)) -> 179.762714 | K19: =J19*((Assumptions!$D32/Assumptions!$C32)^(1/8)) -> 197.7389854 | L19: =K19*((Assumptions!$D32/Assumptions!$C32)^(1/8)) -> 217.5128839 | M19: =L19*((Assumptions!$D32/Assumptions!$C32)^(1/8)) -> 239.2641723 | N19: =M19*((Assumptions!$D32/Assumptions!$C32)^(1/8)) -> 263.1905895 | O19: =N19*((Assumptions!$D32/Assumptions!$C32)^(1/8)) -> 289.5096485 | P19: =O19*((Assumptions!$D32/Assumptions!$C32)^(1/8)) -> 318.4606133 | Q19: =P19*((Assumptions!$D32/Assumptions!$C32)^(1/8)) -> 350.3066747 | R19: =Q19*((Assumptions!$D32/Assumptions!$C32)^(1/8)) -> 385.3373421 | S19: =R19*((Assumptions!$D32/Assumptions!$C32)^(1/8)) -> 423.8710764 | T19: =S19*((Assumptions!$D32/Assumptions!$C32)^(1/8)) -> 466.258184 | U19: =T19*((Assumptions!$D32/Assumptions!$C32)^(1/8)) -> 512.8840024 | W19: =INDEX(C19:U19,MATCH(Assumptions!$B$4,Projections!$C$3:$U$3,0)) -> 512.8840024
A21: Proportion of Indoor users who offload
A22: 0 - 50% | B22: % | C22: =Assumptions!C37 -> 0.5 | D22: =C22+(Assumptions!$D37-Assumptions!$C37)/8 -> 0.5375 | E22: =D22+(Assumptions!$D37-Assumptions!$C37)/8 -> 0.575 | F22: =E22+(Assumptions!$D37-Assumptions!$C37)/8 -> 0.6125 | G22: =F22+(Assumptions!$D37-Assumptions!$C37)/8 -> 0.65 | H22: =G22+(Assumptions!$D37-Assumptions!$C37)/8 -> 0.6875 | I22: =H22+(Assumptions!$D37-Assumptions!$C37)/8 -> 0.725 | J22: =I22+(Assumptions!$D37-Assumptions!$C37)/8 -> 0.7625 | K22: =J22+(Assumptions!$D37-Assumptions!$C37)/8 -> 0.8 | L22: =K22+(Assumptions!$E37-Assumptions!$D37)/10 -> 0.81 | M22: =L22+(Assumptions!$E37-Assumptions!$D37)/10 -> 0.82 | N22: =M22+(Assumptions!$E37-Assumptions!$D37)/10 -> 0.83 | O22: =N22+(Assumptions!$E37-Assumptions!$D37)/10 -> 0.84 | P22: =O22+(Assumptions!$E37-Assumptions!$D37)/10 -> 0.85 | Q22: =P22+(Assumptions!$E37-Assumptions!$D37)/10 -> 0.86 | R22: =Q22+(Assumptions!$E37-Assumptions!$D37)/10 -> 0.87 | S22: =R22+(Assumptions!$E37-Assumptions!$D37)/10 -> 0.88 | T22: =S22+(Assumptions!$E37-Assumptions!$D37)/10 -> 0.89 | U22: =T22+(Assumptions!$E37-Assumptions!$D37)/10 -> 0.9 | W22: =INDEX(C22:U22,MATCH(Assumptions!$B$4,Projections!$C$3:$U$3,0)) -> 0.9
A23: 50 - 80% | B23: % | C23: =Assumptions!C38 -> 0.5 | D23: =C23+(Assumptions!$D38-Assumptions!$C38)/8 -> 0.525 | E23: =D23+(Assumptions!$D38-Assumptions!$C38)/8 -> 0.55 | F23: =E23+(Assumptions!$D38-Assumptions!$C38)/8 -> 0.575 | G23: =F23+(Assumptions!$D38-Assumptions!$C38)/8 -> 0.6 | H23: =G23+(Assumptions!$D38-Assumptions!$C38)/8 -> 0.625 | I23: =H23+(Assumptions!$D38-Assumptions!$C38)/8 -> 0.65 | J23: =I23+(Assumptions!$D38-Assumptions!$C38)/8 -> 0.675 | K23: =J23+(Assumptions!$D38-Assumptions!$C38)/8 -> 0.7 | L23: =K23+(Assumptions!$E38-Assumptions!$D38)/10 -> 0.71 | M23: =L23+(Assumptions!$E38-Assumptions!$D38)/10 -> 0.72 | N23: =M23+(Assumptions!$E38-Assumptions!$D38)/10 -> 0.73 | O23: =N23+(Assumptions!$E38-Assumptions!$D38)/10 -> 0.74 | P23: =O23+(Assumptions!$E38-Assumptions!$D38)/10 -> 0.75 | Q23: =P23+(Assumptions!$E38-Assumptions!$D38)/10 -> 0.76 | R23: =Q23+(Assumptions!$E38-Assumptions!$D38)/10 -> 0.77 | S23: =R23+(Assumptions!$E38-Assumptions!$D38)/10 -> 0.78 | T23: =S23+(Assumptions!$E38-Assumptions!$D38)/10 -> 0.79 | U23: =T23+(Assumptions!$E38-Assumptions!$D38)/10 -> 0.8 | W23: =INDEX(C23:U23,MATCH(Assumptions!$B$4,Projections!$C$3:$U$3,0)) -> 0.8
A24: 80 - 90% | B24: % | C24: =Assumptions!C39 -> 0.5 | D24: =C24+(Assumptions!$D39-Assumptions!$C39)/8 -> 0.5125 | E24: =D24+(Assumptions!$D39-Assumptions!$C39)/8 -> 0.525 | F24: =E24+(Assumptions!$D39-Assumptions!$C39)/8 -> 0.5375 | G24: =F24+(Assumptions!$D39-Assumptions!$C39)/8 -> 0.55 | H24: =G24+(Assumptions!$D39-Assumptions!$C39)/8 -> 0.5625 | I24: =H24+(Assumptions!$D39-Assumptions!$C39)/8 -> 0.575 | J24: =I24+(Assumptions!$D39-Assumptions!$C39)/8 -> 0.5875 | K24: =J24+(Assumptions!$D39-Assumptions!$C39)/8 -> 0.6 | L24: =K24+(Assumptions!$E39-Assumptions!$D39)/10 -> 0.61 | M24: =L24+(Assumptions!$E39-Assumptions!$D39)/10 -> 0.62 | N24: =M24+(Assumptions!$E39-Assumptions!$D39)/10 -> 0.63 | O24: =N24+(Assumptions!$E39-Assumptions!$D39)/10 -> 0.64 | P24: =O24+(Assumptions!$E39-Assumptions!$D39)/10 -> 0.65 | Q24: =P24+(Assumptions!$E39-Assumptions!$D39)/10 -> 0.66 | R24: =Q24+(Assumptions!$E39-Assumptions!$D39)/10 -> 0.67 | S24: =R24+(Assumptions!$E39-Assumptions!$D39)/10 -> 0.68 | T24: =S24+(Assumptions!$E39-Assumptions!$D39)/10 -> 0.69 | U24: =T24+(Assumptions!$E39-Assumptions!$D39)/10 -> 0.7 | W24: =INDEX(C24:U24,MATCH(Assumptions!$B$4,Projections!$C$3:$U$3,0)) -> 0.7
A25: 90 - 100% | B25: % | C25: =Assumptions!C40 -> 0.5 | D25: =C25+(Assumptions!$D40-Assumptions!$C40)/8 -> 0.5125 | E25: =D25+(Assumptions!$D40-Assumptions!$C40)/8 -> 0.525 | F25: =E25+(Assumptions!$D40-Assumptions!$C40)/8 -> 0.5375 | G25: =F25+(Assumptions!$D40-Assumptions!$C40)/8 -> 0.55 | H25: =G25+(Assumptions!$D40-Assumptions!$C40)/8 -> 0.5625 | I25: =H25+(Assumptions!$D40-Assumptions!$C40)/8 -> 0.575 | J25: =I25+(Assumptions!$D40-Assumptions!$C40)/8 -> 0.5875 | K25: =J25+(Assumptions!$D40-Assumptions!$C40)/8 -> 0.6 | L25: =K25+(Assumptions!$E40-Assumptions!$D40)/10 -> 0.61 | M25: =L25+(Assumptions!$E40-Assumptions!$D40)/10 -> 0.62 | N25: =M25+(Assumptions!$E40-Assumptions!$D40)/10 -> 0.63 | O25: =N25+(Assumptions!$E40-Assumptions!$D40)/10 -> 0.64 | P25: =O25+(Assumptions!$E40-Assumptions!$D40)/10 -> 0.65 | Q25: =P25+(Assumptions!$E40-Assumptions!$D40)/10 -> 0.66 | R25: =Q25+(Assumptions!$E40-Assumptions!$D40)/10 -> 0.67 | S25: =R25+(Assumptions!$E40-Assumptions!$D40)/10 -> 0.68 | T25: =S25+(Assumptions!$E40-Assumptions!$D40)/10 -> 0.69 | U25: =T25+(Assumptions!$E40-Assumptions!$D40)/10 -> 0.7 | W25: =INDEX(C25:U25,MATCH(Assumptions!$B$4,Projections!$C$3:$U$3,0)) -> 0.7
A27: Population of Indoor users served by mobile
A28: 0 - 50% | B28: # | C28: =(1-C22)*Assumptions!$C45*Assumptions!$C$42 -> 10720580.62 | D28: =(1-D22)*Assumptions!$C45*Assumptions!$C$42 -> 9916537.078 | E28: =(1-E22)*Assumptions!$C45*Assumptions!$C$42 -> 9112493.531 | F28: =(1-F22)*Assumptions!$C45*Assumptions!$C$42 -> 8308449.984 | G28: =(1-G22)*Assumptions!$C45*Assumptions!$C$42 -> 7504406.438 | H28: =(1-H22)*Assumptions!$C45*Assumptions!$C$42 -> 6700362.891 | I28: =(1-I22)*Assumptions!$C45*Assumptions!$C$42 -> 5896319.344 | J28: =(1-J22)*Assumptions!$C45*Assumptions!$C$42 -> 5092275.797 | K28: =(1-K22)*Assumptions!$C45*Assumptions!$C$42 -> 4288232.25 | L28: =(1-L22)*Assumptions!$C45*Assumptions!$C$42 -> 4073820.638 | M28: =(1-M22)*Assumptions!$C45*Assumptions!$C$42 -> 3859409.025 | N28: =(1-N22)*Assumptions!$C45*Assumptions!$C$42 -> 3644997.413 | O28: =(1-O22)*Assumptions!$C45*Assumptions!$C$42 -> 3430585.8 | P28: =(1-P22)*Assumptions!$C45*Assumptions!$C$42 -> 3216174.188 | Q28: =(1-Q22)*Assumptions!$C45*Assumptions!$C$42 -> 3001762.575 | R28: =(1-R22)*Assumptions!$C45*Assumptions!$C$42 -> 2787350.963 | S28: =(1-S22)*Assumptions!$C45*Assumptions!$C$42 -> 2572939.35 | T28: =(1-T22)*Assumptions!$C45*Assumptions!$C$42 -> 2358527.738 | U28: =(1-U22)*Assumptions!$C45*Assumptions!$C$42 -> 2144116.125 | W28: =INDEX(C28:U28,MATCH(Assumptions!$B$4,Projections!$C$3:$U$3,0)) -> 2144116.125
A29: 50 - 80% | B29: # | C29: =(1-C23)*Assumptions!$C46*Assumptions!$C$42 -> 6436064.25 | D29: =(1-D23)*Assumptions!$C46*Assumptions!$C$42 -> 6114261.037 | E29: =(1-E23)*Assumptions!$C46*Assumptions!$C$42 -> 5792457.825 | F29: =(1-F23)*Assumptions!$C46*Assumptions!$C$42 -> 5470654.612 | G29: =(1-G23)*Assumptions!$C46*Assumptions!$C$42 -> 5148851.4 | H29: =(1-H23)*Assumptions!$C46*Assumptions!$C$42 -> 4827048.187 | I29: =(1-I23)*Assumptions!$C46*Assumptions!$C$42 -> 4505244.975 | J29: =(1-J23)*Assumptions!$C46*Assumptions!$C$42 -> 4183441.762 | K29: =(1-K23)*Assumptions!$C46*Assumptions!$C$42 -> 3861638.55 | L29: =(1-L23)*Assumptions!$C46*Assumptions!$C$42 -> 3732917.265 | M29: =(1-M23)*Assumptions!$C46*Assumptions!$C$42 -> 3604195.98 | N29: =(1-N23)*Assumptions!$C46*Assumptions!$C$42 -> 3475474.695 | O29: =(1-O23)*Assumptions!$C46*Assumptions!$C$42 -> 3346753.41 | P29: =(1-P23)*Assumptions!$C46*Assumptions!$C$42 -> 3218032.125 | Q29: =(1-Q23)*Assumptions!$C46*Assumptions!$C$42 -> 3089310.84 | R29: =(1-R23)*Assumptions!$C46*Assumptions!$C$42 -> 2960589.555 | S29: =(1-S23)*Assumptions!$C46*Assumptions!$C$42 -> 2831868.27 | T29: =(1-T23)*Assumptions!$C46*Assumptions!$C$42 -> 2703146.985 | U29: =(1-U23)*Assumptions!$C46*Assumptions!$C$42 -> 2574425.7 | W29: =INDEX(C29:U29,MATCH(Assumptions!$B$4,Projections!$C$3:$U$3,0)) -> 2574425.7
A30: 80 - 90% | B30: # | C30: =(1-C24)*Assumptions!$C47*Assumptions!$C$42 -> 2118207.375 | D30: =(1-D24)*Assumptions!$C47*Assumptions!$C$42 -> 2065252.191 | E30: =(1-E24)*Assumptions!$C47*Assumptions!$C$42 -> 2012297.006 | F30: =(1-F24)*Assumptions!$C47*Assumptions!$C$42 -> 1959341.822 | G30: =(1-G24)*Assumptions!$C47*Assumptions!$C$42 -> 1906386.638 | H30: =(1-H24)*Assumptions!$C47*Assumptions!$C$42 -> 1853431.453 | I30: =(1-I24)*Assumptions!$C47*Assumptions!$C$42 -> 1800476.269 | J30: =(1-J24)*Assumptions!$C47*Assumptions!$C$42 -> 1747521.084 | K30: =(1-K24)*Assumptions!$C47*Assumptions!$C$42 -> 1694565.9 | L30: =(1-L24)*Assumptions!$C47*Assumptions!$C$42 -> 1652201.753 | M30: =(1-M24)*Assumptions!$C47*Assumptions!$C$42 -> 1609837.605 | N30: =(1-N24)*Assumptions!$C47*Assumptions!$C$42 -> 1567473.458 | O30: =(1-O24)*Assumptions!$C47*Assumptions!$C$42 -> 1525109.31 | P30: =(1-P24)*Assumptions!$C47*Assumptions!$C$42 -> 1482745.163 | Q30: =(1-Q24)*Assumptions!$C47*Assumptions!$C$42 -> 1440381.015 | R30: =(1-R24)*Assumptions!$C47*Assumptions!$C$42 -> 1398016.868 | S30: =(1-S24)*Assumptions!$C47*Assumptions!$C$42 -> 1355652.72 | T30: =(1-T24)*Assumptions!$C47*Assumptions!$C$42 -> 1313288.573 | U30: =(1-U24)*Assumptions!$C47*Assumptions!$C$42 -> 1270924.425 | W30: =INDEX(C30:U30,MATCH(Assumptions!$B$4,Projections!$C$3:$U$3,0)) -> 1270924.425
A31: 90 - 100% | B31: # | C31: =(1-C25)*Assumptions!$C48*Assumptions!$C$42 -> 2772097.875 | D31: =(1-D25)*Assumptions!$C48*Assumptions!$C$42 -> 2702795.428 | E31: =(1-E25)*Assumptions!$C48*Assumptions!$C$42 -> 2633492.981 | F31: =(1-F25)*Assumptions!$C48*Assumptions!$C$42 -> 2564190.534 | G31: =(1-G25)*Assumptions!$C48*Assumptions!$C$42 -> 2494888.088 | H31: =(1-H25)*Assumptions!$C48*Assumptions!$C$42 -> 2425585.641 | I31: =(1-I25)*Assumptions!$C48*Assumptions!$C$42 -> 2356283.194 | J31: =(1-J25)*Assumptions!$C48*Assumptions!$C$42 -> 2286980.747 | K31: =(1-K25)*Assumptions!$C48*Assumptions!$C$42 -> 2217678.3 | L31: =(1-L25)*Assumptions!$C48*Assumptions!$C$42 -> 2162236.343 | M31: =(1-M25)*Assumptions!$C48*Assumptions!$C$42 -> 2106794.385 | N31: =(1-N25)*Assumptions!$C48*Assumptions!$C$42 -> 2051352.428 | O31: =(1-O25)*Assumptions!$C48*Assumptions!$C$42 -> 1995910.47 | P31: =(1-P25)*Assumptions!$C48*Assumptions!$C$42 -> 1940468.513 | Q31: =(1-Q25)*Assumptions!$C48*Assumptions!$C$42 -> 1885026.555 | R31: =(1-R25)*Assumptions!$C48*Assumptions!$C$42 -> 1829584.598 | S31: =(1-S25)*Assumptions!$C48*Assumptions!$C$42 -> 1774142.64 | T31: =(1-T25)*Assumptions!$C48*Assumptions!$C$42 -> 1718700.683 | U31: =(1-U25)*Assumptions!$C48*Assumptions!$C$42 -> 1663258.725 | W31: =INDEX(C31:U31,MATCH(Assumptions!$B$4,Projections!$C$3:$U$3,0)) -> 1663258.725
A33: Population of Outdoor users
A34: 0 - 50% | B34: # | C34: =Assumptions!$C45*(1-Assumptions!$C$42) -> 7147053.75 | D34: =Assumptions!$C45*(1-Assumptions!$C$42) -> 7147053.75 | E34: =Assumptions!$C45*(1-Assumptions!$C$42) -> 7147053.75 | F34: =Assumptions!$C45*(1-Assumptions!$C$42) -> 7147053.75 | G34: =Assumptions!$C45*(1-Assumptions!$C$42) -> 7147053.75 | H34: =Assumptions!$C45*(1-Assumptions!$C$42) -> 7147053.75 | I34: =Assumptions!$C45*(1-Assumptions!$C$42) -> 7147053.75 | J34: =Assumptions!$C45*(1-Assumptions!$C$42) -> 7147053.75 | K34: =Assumptions!$C45*(1-Assumptions!$C$42) -> 7147053.75 | L34: =Assumptions!$C45*(1-Assumptions!$C$42) -> 7147053.75 | M34: =Assumptions!$C45*(1-Assumptions!$C$42) -> 7147053.75 | N34: =Assumptions!$C45*(1-Assumptions!$C$42) -> 7147053.75 | O34: =Assumptions!$C45*(1-Assumptions!$C$42) -> 7147053.75 | P34: =Assumptions!$C45*(1-Assumptions!$C$42) -> 7147053.75 | Q34: =Assumptions!$C45*(1-Assumptions!$C$42) -> 7147053.75 | R34: =Assumptions!$C45*(1-Assumptions!$C$42) -> 7147053.75 | S34: =Assumptions!$C45*(1-Assumptions!$C$42) -> 7147053.75 | T34: =Assumptions!$C45*(1-Assumptions!$C$42) -> 7147053.75 | U34: =Assumptions!$C45*(1-Assumptions!$C$42) -> 7147053.75 | W34: =INDEX(C34:U34,MATCH(Assumptions!$B$4,Projections!$C$3:$U$3,0)) -> 7147053.75
A35: 50 - 80% | B35: # | C35: =Assumptions!$C46*(1-Assumptions!$C$42) -> 4290709.5 | D35: =Assumptions!$C46*(1-Assumptions!$C$42) -> 4290709.5 | E35: =Assumptions!$C46*(1-Assumptions!$C$42) -> 4290709.5 | F35: =Assumptions!$C46*(1-Assumptions!$C$42) -> 4290709.5 | G35: =Assumptions!$C46*(1-Assumptions!$C$42) -> 4290709.5 | H35: =Assumptions!$C46*(1-Assumptions!$C$42) -> 4290709.5 | I35: =Assumptions!$C46*(1-Assumptions!$C$42) -> 4290709.5 | J35: =Assumptions!$C46*(1-Assumptions!$C$42) -> 4290709.5 | K35: =Assumptions!$C46*(1-Assumptions!$C$42) -> 4290709.5 | L35: =Assumptions!$C46*(1-Assumptions!$C$42) -> 4290709.5 | M35: =Assumptions!$C46*(1-Assumptions!$C$42) -> 4290709.5 | N35: =Assumptions!$C46*(1-Assumptions!$C$42) -> 4290709.5 | O35: =Assumptions!$C46*(1-Assumptions!$C$42) -> 4290709.5 | P35: =Assumptions!$C46*(1-Assumptions!$C$42) -> 4290709.5 | Q35: =Assumptions!$C46*(1-Assumptions!$C$42) -> 4290709.5 | R35: =Assumptions!$C46*(1-Assumptions!$C$42) -> 4290709.5 | S35: =Assumptions!$C46*(1-Assumptions!$C$42) -> 4290709.5 | T35: =Assumptions!$C46*(1-Assumptions!$C$42) -> 4290709.5 | U35: =Assumptions!$C46*(1-Assumptions!$C$42) -> 4290709.5 | W35: =INDEX(C35:U35,MATCH(Assumptions!$B$4,Projections!$C$3:$U$3,0)) -> 4290709.5
A36: 80 - 90% | B36: # | C36: =Assumptions!$C47*(1-Assumptions!$C$42) -> 1412138.25 | D36: =Assumptions!$C47*(1-Assumptions!$C$42) -> 1412138.25 | E36: =Assumptions!$C47*(1-Assumptions!$C$42) -> 1412138.25 | F36: =Assumptions!$C47*(1-Assumptions!$C$42) -> 1412138.25 | G36: =Assumptions!$C47*(1-Assumptions!$C$42) -> 1412138.25 | H36: =Assumptions!$C47*(1-Assumptions!$C$42) -> 1412138.25 | I36: =Assumptions!$C47*(1-Assumptions!$C$42) -> 1412138.25 | J36: =Assumptions!$C47*(1-Assumptions!$C$42) -> 1412138.25 | K36: =Assumptions!$C47*(1-Assumptions!$C$42) -> 1412138.25 | L36: =Assumptions!$C47*(1-Assumptions!$C$42) -> 1412138.25 | M36: =Assumptions!$C47*(1-Assumptions!$C$42) -> 1412138.25 | N36: =Assumptions!$C47*(1-Assumptions!$C$42) -> 1412138.25 | O36: =Assumptions!$C47*(1-Assumptions!$C$42) -> 1412138.25 | P36: =Assumptions!$C47*(1-Assumptions!$C$42) -> 1412138.25 | Q36: =Assumptions!$C47*(1-Assumptions!$C$42) -> 1412138.25 | R36: =Assumptions!$C47*(1-Assumptions!$C$42) -> 1412138.25 | S36: =Assumptions!$C47*(1-Assumptions!$C$42) -> 1412138.25 | T36: =Assumptions!$C47*(1-Assumptions!$C$42) -> 1412138.25 | U36: =Assumptions!$C47*(1-Assumptions!$C$42) -> 1412138.25 | W36: =INDEX(C36:U36,MATCH(Assumptions!$B$4,Projections!$C$3:$U$3,0)) -> 1412138.25
A37: 90 - 100% | B37: # | C37: =Assumptions!$C48*(1-Assumptions!$C$42) -> 1848065.25 | D37: =Assumptions!$C48*(1-Assumptions!$C$42) -> 1848065.25 | E37: =Assumptions!$C48*(1-Assumptions!$C$42) -> 1848065.25 | F37: =Assumptions!$C48*(1-Assumptions!$C$42) -> 1848065.25 | G37: =Assumptions!$C48*(1-Assumptions!$C$42) -> 1848065.25 | H37: =Assumptions!$C48*(1-Assumptions!$C$42) -> 1848065.25 | I37: =Assumptions!$C48*(1-Assumptions!$C$42) -> 1848065.25 | J37: =Assumptions!$C48*(1-Assumptions!$C$42) -> 1848065.25 | K37: =Assumptions!$C48*(1-Assumptions!$C$42) -> 1848065.25 | L37: =Assumptions!$C48*(1-Assumptions!$C$42) -> 1848065.25 | M37: =Assumptions!$C48*(1-Assumptions!$C$42) -> 1848065.25 | N37: =Assumptions!$C48*(1-Assumptions!$C$42) -> 1848065.25 | O37: =Assumptions!$C48*(1-Assumptions!$C$42) -> 1848065.25 | P37: =Assumptions!$C48*(1-Assumptions!$C$42) -> 1848065.25 | Q37: =Assumptions!$C48*(1-Assumptions!$C$42) -> 1848065.25 | R37: =Assumptions!$C48*(1-Assumptions!$C$42) -> 1848065.25 | S37: =Assumptions!$C48*(1-Assumptions!$C$42) -> 1848065.25 | T37: =Assumptions!$C48*(1-Assumptions!$C$42) -> 1848065.25 | U37: =Assumptions!$C48*(1-Assumptions!$C$42) -> 1848065.25 | W37: =INDEX(C37:U37,MATCH(Assumptions!$B$4,Projections!$C$3:$U$3,0)) -> 1848065.25
A39: Spectrum for macro cells
A40: Sub 1 GHz | B40: MHz | C40: =SUMIFS(Assumptions!D$54:D$62,Assumptions!$B$54:$B$62,"=Sub 1 GHz",Assumptions!$C$54:$C$62,"<>Small Cell") -> 10 | D40: =SUMIFS(Assumptions!E$54:E$62,Assumptions!$B$54:$B$62,"=Sub 1 GHz",Assumptions!$C$54:$C$62,"<>Small Cell") -> 40 | E40: =SUMIFS(Assumptions!F$54:F$62,Assumptions!$B$54:$B$62,"=Sub 1 GHz",Assumptions!$C$54:$C$62,"<>Small Cell") -> 40 | F40: =SUMIFS(Assumptions!G$54:G$62,Assumptions!$B$54:$B$62,"=Sub 1 GHz",Assumptions!$C$54:$C$62,"<>Small Cell") -> 40 | G40: =SUMIFS(Assumptions!H$54:H$62,Assumptions!$B$54:$B$62,"=Sub 1 GHz",Assumptions!$C$54:$C$62,"<>Small Cell") -> 45 | H40: =SUMIFS(Assumptions!I$54:I$62,Assumptions!$B$54:$B$62,"=Sub 1 GHz",Assumptions!$C$54:$C$62,"<>Small Cell") -> 50 | I40: =SUMIFS(Assumptions!J$54:J$62,Assumptions!$B$54:$B$62,"=Sub 1 GHz",Assumptions!$C$54:$C$62,"<>Small Cell") -> 55 | J40: =SUMIFS(Assumptions!K$54:K$62,Assumptions!$B$54:$B$62,"=Sub 1 GHz",Assumptions!$C$54:$C$62,"<>Small Cell") -> 60 | K40: =SUMIFS(Assumptions!L$54:L$62,Assumptions!$B$54:$B$62,"=Sub 1 GHz",Assumptions!$C$54:$C$62,"<>Small Cell") -> 90 | L40: =K40 -> 90 | M40: =L40 -> 90 | N40: =M40 -> 90 | O40: 90 | P40: 90 | Q40: 90 | R40: 90 | S40: 90 | T40: 90 | U40: 90 | W40: =INDEX(C40:U40,MATCH(Assumptions!$B$4,Projections!$C$3:$U$3,0)) -> 90
A41: 1 - 2 GHz | B41: MHz | C41: =SUMIFS(Assumptions!D$54:D$62,Assumptions!$B$54:$B$62,"=1 - 2 GHz",Assumptions!$C$54:$C$62,"<>Small Cell") -> 22 | D41: =SUMIFS(Assumptions!E$54:E$62,Assumptions!$B$54:$B$62,"=1 - 2 GHz",Assumptions!$C$54:$C$62,"<>Small Cell") -> 22 | E41: =SUMIFS(Assumptions!F$54:F$62,Assumptions!$B$54:$B$62,"=1 - 2 GHz",Assumptions!$C$54:$C$62,"<>Small Cell") -> 22 | F41: =SUMIFS(Assumptions!G$54:G$62,Assumptions!$B$54:$B$62,"=1 - 2 GHz",Assumptions!$C$54:$C$62,"<>Small Cell") -> 22 | G41: =SUMIFS(Assumptions!H$54:H$62,Assumptions!$B$54:$B$62,"=1 - 2 GHz",Assumptions!$C$54:$C$62,"<>Small Cell") -> 36 | H41: =SUMIFS(Assumptions!I$54:I$62,Assumptions!$B$54:$B$62,"=1 - 2 GHz",Assumptions!$C$54:$C$62,"<>Small Cell") -> 46 | I41: =SUMIFS(Assumptions!J$54:J$62,Assumptions!$B$54:$B$62,"=1 - 2 GHz",Assumptions!$C$54:$C$62,"<>Small Cell") -> 56 | J41: =SUMIFS(Assumptions!K$54:K$62,Assumptions!$B$54:$B$62,"=1 - 2 GHz",Assumptions!$C$54:$C$62,"<>Small Cell") -> 66 | K41: =SUMIFS(Assumptions!L$54:L$62,Assumptions!$B$54:$B$62,"=1 - 2 GHz",Assumptions!$C$54:$C$62,"<>Small Cell") -> 72 | L41: =K41 -> 72 | M41: =L41 -> 72 | N41: =M41 -> 72 | O41: 72 | P41: 72 | Q41: 72 | R41: 72 | S41: 72 | T41: 72 | U41: 72 | W41: =INDEX(C41:U41,MATCH(Assumptions!$B$4,Projections!$C$3:$U$3,0)) -> 72
A42: 2 - 3 GHz | B42: MHz | C42: =SUMIFS(Assumptions!D$54:D$62,Assumptions!$B$54:$B$62,"=2 - 3 GHz",Assumptions!$C$54:$C$62,"<>Small Cell") -> 60 | D42: =SUMIFS(Assumptions!E$54:E$62,Assumptions!$B$54:$B$62,"=2 - 3 GHz",Assumptions!$C$54:$C$62,"<>Small Cell") -> 158 | E42: =SUMIFS(Assumptions!F$54:F$62,Assumptions!$B$54:$B$62,"=2 - 3 GHz",Assumptions!$C$54:$C$62,"<>Small Cell") -> 158 | F42: =SUMIFS(Assumptions!G$54:G$62,Assumptions!$B$54:$B$62,"=2 - 3 GHz",Assumptions!$C$54:$C$62,"<>Small Cell") -> 158 | G42: =SUMIFS(Assumptions!H$54:H$62,Assumptions!$B$54:$B$62,"=2 - 3 GHz",Assumptions!$C$54:$C$62,"<>Small Cell") -> 158 | H42: =SUMIFS(Assumptions!I$54:I$62,Assumptions!$B$54:$B$62,"=2 - 3 GHz",Assumptions!$C$54:$C$62,"<>Small Cell") -> 158 | I42: =SUMIFS(Assumptions!J$54:J$62,Assumptions!$B$54:$B$62,"=2 - 3 GHz",Assumptions!$C$54:$C$62,"<>Small Cell") -> 158 | J42: =SUMIFS(Assumptions!K$54:K$62,Assumptions!$B$54:$B$62,"=2 - 3 GHz",Assumptions!$C$54:$C$62,"<>Small Cell") -> 158 | K42: =SUMIFS(Assumptions!L$54:L$62,Assumptions!$B$54:$B$62,"=2 - 3 GHz",Assumptions!$C$54:$C$62,"<>Small Cell") -> 158 | L42: 158 | M42: 158 | N42: =M42 -> 158 | O42: 158 | P42: 158 | Q42: 158 | R42: 158 | S42: 158 | T42: 158 | U42: 158 | W42: =INDEX(C42:U42,MATCH(Assumptions!$B$4,Projections!$C$3:$U$3,0)) -> 158
A43: 3 - 4 GHz | B43: MHz | C43: =SUMIFS(Assumptions!D$54:D$62,Assumptions!$B$54:$B$62,"=3 - 4 GHz",Assumptions!$C$54:$C$62,"<>Small Cell") -> 0 | D43: =SUMIFS(Assumptions!E$54:E$62,Assumptions!$B$54:$B$62,"=3 - 4 GHz",Assumptions!$C$54:$C$62,"<>Small Cell") -> 0 | E43: =SUMIFS(Assumptions!F$54:F$62,Assumptions!$B$54:$B$62,"=3 - 4 GHz",Assumptions!$C$54:$C$62,"<>Small Cell") -> 0 | F43: =SUMIFS(Assumptions!G$54:G$62,Assumptions!$B$54:$B$62,"=3 - 4 GHz",Assumptions!$C$54:$C$62,"<>Small Cell") -> 0 | G43: =SUMIFS(Assumptions!H$54:H$62,Assumptions!$B$54:$B$62,"=3 - 4 GHz",Assumptions!$C$54:$C$62,"<>Small Cell") -> 0 | H43: =SUMIFS(Assumptions!I$54:I$62,Assumptions!$B$54:$B$62,"=3 - 4 GHz",Assumptions!$C$54:$C$62,"<>Small Cell") -> 0 | I43: =SUMIFS(Assumptions!J$54:J$62,Assumptions!$B$54:$B$62,"=3 - 4 GHz",Assumptions!$C$54:$C$62,"<>Small Cell") -> 0 | J43: =SUMIFS(Assumptions!K$54:K$62,Assumptions!$B$54:$B$62,"=3 - 4 GHz",Assumptions!$C$54:$C$62,"<>Small Cell") -> 0 | K43: =SUMIFS(Assumptions!L$54:L$62,Assumptions!$B$54:$B$62,"=3 - 4 GHz",Assumptions!$C$54:$C$62,"<>Small Cell") -> 0 | L43: 0 | M43: 0 | N43: =M43 -> 0 | O43: 0 | P43: 0 | Q43: 0 | R43: 0 | S43: 0 | T43: 0 | U43: 0 | W43: =INDEX(C43:U43,MATCH(Assumptions!$B$4,Projections!$C$3:$U$3,0)) -> 0
A44: 4 - 6 GHz | B44: MHz | C44: =SUMIFS(Assumptions!D$54:D$62,Assumptions!$B$54:$B$62,"=4 - 6 GHz",Assumptions!$C$54:$C$62,"<>Small Cell") -> 0 | D44: =SUMIFS(Assumptions!E$54:E$62,Assumptions!$B$54:$B$62,"=4 - 6 GHz",Assumptions!$C$54:$C$62,"<>Small Cell") -> 0 | E44: =SUMIFS(Assumptions!F$54:F$62,Assumptions!$B$54:$B$62,"=4 - 6 GHz",Assumptions!$C$54:$C$62,"<>Small Cell") -> 0 | F44: =SUMIFS(Assumptions!G$54:G$62,Assumptions!$B$54:$B$62,"=4 - 6 GHz",Assumptions!$C$54:$C$62,"<>Small Cell") -> 0 | G44: =SUMIFS(Assumptions!H$54:H$62,Assumptions!$B$54:$B$62,"=4 - 6 GHz",Assumptions!$C$54:$C$62,"<>Small Cell") -> 0 | H44: =SUMIFS(Assumptions!I$54:I$62,Assumptions!$B$54:$B$62,"=4 - 6 GHz",Assumptions!$C$54:$C$62,"<>Small Cell") -> 0 | I44: =SUMIFS(Assumptions!J$54:J$62,Assumptions!$B$54:$B$62,"=4 - 6 GHz",Assumptions!$C$54:$C$62,"<>Small Cell") -> 0 | J44: =SUMIFS(Assumptions!K$54:K$62,Assumptions!$B$54:$B$62,"=4 - 6 GHz",Assumptions!$C$54:$C$62,"<>Small Cell") -> 0 | K44: =SUMIFS(Assumptions!L$54:L$62,Assumptions!$B$54:$B$62,"=4 - 6 GHz",Assumptions!$C$54:$C$62,"<>Small Cell") -> 0 | L44: 0 | M44: 0 | N44: =M44 -> 0 | O44: 0 | P44: 0 | Q44: 0 | R44: 0 | S44: 0 | T44: 0 | U44: 0 | W44: =INDEX(C44:U44,MATCH(Assumptions!$B$4,Projections!$C$3:$U$3,0)) -> 0
A46: Spectrum for small cells
A47: Sub 1 GHz | B47: MHz | C47: =SUMIFS(Assumptions!D$54:D$62,Assumptions!$B$54:$B$62,"=Sub 1 GHz",Assumptions!$C$54:$C$62,"<>Macro") -> 0 | D47: =SUMIFS(Assumptions!E$54:E$62,Assumptions!$B$54:$B$62,"=Sub 1 GHz",Assumptions!$C$54:$C$62,"<>Macro") -> 0 | E47: =SUMIFS(Assumptions!F$54:F$62,Assumptions!$B$54:$B$62,"=Sub 1 GHz",Assumptions!$C$54:$C$62,"<>Macro") -> 0 | F47: =SUMIFS(Assumptions!G$54:G$62,Assumptions!$B$54:$B$62,"=Sub 1 GHz",Assumptions!$C$54:$C$62,"<>Macro") -> 0 | G47: =SUMIFS(Assumptions!H$54:H$62,Assumptions!$B$54:$B$62,"=Sub 1 GHz",Assumptions!$C$54:$C$62,"<>Macro") -> 0 | H47: =SUMIFS(Assumptions!I$54:I$62,Assumptions!$B$54:$B$62,"=Sub 1 GHz",Assumptions!$C$54:$C$62,"<>Macro") -> 0 | I47: =SUMIFS(Assumptions!J$54:J$62,Assumptions!$B$54:$B$62,"=Sub 1 GHz",Assumptions!$C$54:$C$62,"<>Macro") -> 0 | J47: =SUMIFS(Assumptions!K$54:K$62,Assumptions!$B$54:$B$62,"=Sub 1 GHz",Assumptions!$C$54:$C$62,"<>Macro") -> 0 | K47: =SUMIFS(Assumptions!L$54:L$62,Assumptions!$B$54:$B$62,"=Sub 1 GHz",Assumptions!$C$54:$C$62,"<>Macro") -> 0 | L47: =K47 -> 0 | M47: =L47 -> 0 | N47: 0 | O47: 0 | P47: 0 | Q47: 0 | R47: 0 | S47: 0 | T47: 0 | U47: 0 | W47: =INDEX(C47:U47,MATCH(Assumptions!$B$4,Projections!$C$3:$U$3,0)) -> 0
A48: 1 - 2 GHz | B48: MHz | C48: =SUMIFS(Assumptions!D$54:D$62,Assumptions!$B$54:$B$62,"=1 - 2 GHz",Assumptions!$C$54:$C$62,"<>Macro") -> 0 | D48: =SUMIFS(Assumptions!E$54:E$62,Assumptions!$B$54:$B$62,"=1 - 2 GHz",Assumptions!$C$54:$C$62,"<>Macro") -> 0 | E48: =SUMIFS(Assumptions!F$54:F$62,Assumptions!$B$54:$B$62,"=1 - 2 GHz",Assumptions!$C$54:$C$62,"<>Macro") -> 0 | F48: =SUMIFS(Assumptions!G$54:G$62,Assumptions!$B$54:$B$62,"=1 - 2 GHz",Assumptions!$C$54:$C$62,"<>Macro") -> 0 | G48: =SUMIFS(Assumptions!H$54:H$62,Assumptions!$B$54:$B$62,"=1 - 2 GHz",Assumptions!$C$54:$C$62,"<>Macro") -> 0 | H48: =SUMIFS(Assumptions!I$54:I$62,Assumptions!$B$54:$B$62,"=1 - 2 GHz",Assumptions!$C$54:$C$62,"<>Macro") -> 0 | I48: =SUMIFS(Assumptions!J$54:J$62,Assumptions!$B$54:$B$62,"=1 - 2 GHz",Assumptions!$C$54:$C$62,"<>Macro") -> 0 | J48: =SUMIFS(Assumptions!K$54:K$62,Assumptions!$B$54:$B$62,"=1 - 2 GHz",Assumptions!$C$54:$C$62,"<>Macro") -> 0 | K48: =SUMIFS(Assumptions!L$54:L$62,Assumptions!$B$54:$B$62,"=1 - 2 GHz",Assumptions!$C$54:$C$62,"<>Macro") -> 0 | L48: =K48 -> 0 | M48: =L48 -> 0 | N48: 0 | O48: 0 | P48: 0 | Q48: 0 | R48: 0 | S48: 0 | T48: 0 | U48: 0 | W48: =INDEX(C48:U48,MATCH(Assumptions!$B$4,Projections!$C$3:$U$3,0)) -> 0
A49: 2 - 3 GHz | B49: MHz | C49: =SUMIFS(Assumptions!D$54:D$62,Assumptions!$B$54:$B$62,"=2 - 3 GHz",Assumptions!$C$54:$C$62,"<>Macro") -> 60 | D49: =SUMIFS(Assumptions!E$54:E$62,Assumptions!$B$54:$B$62,"=2 - 3 GHz",Assumptions!$C$54:$C$62,"<>Macro") -> 158 | E49: =SUMIFS(Assumptions!F$54:F$62,Assumptions!$B$54:$B$62,"=2 - 3 GHz",Assumptions!$C$54:$C$62,"<>Macro") -> 158 | F49: =SUMIFS(Assumptions!G$54:G$62,Assumptions!$B$54:$B$62,"=2 - 3 GHz",Assumptions!$C$54:$C$62,"<>Macro") -> 186 | G49: =SUMIFS(Assumptions!H$54:H$62,Assumptions!$B$54:$B$62,"=2 - 3 GHz",Assumptions!$C$54:$C$62,"<>Macro") -> 186 | H49: =SUMIFS(Assumptions!I$54:I$62,Assumptions!$B$54:$B$62,"=2 - 3 GHz",Assumptions!$C$54:$C$62,"<>Macro") -> 186 | I49: =SUMIFS(Assumptions!J$54:J$62,Assumptions!$B$54:$B$62,"=2 - 3 GHz",Assumptions!$C$54:$C$62,"<>Macro") -> 186 | J49: =SUMIFS(Assumptions!K$54:K$62,Assumptions!$B$54:$B$62,"=2 - 3 GHz",Assumptions!$C$54:$C$62,"<>Macro") -> 186 | K49: =SUMIFS(Assumptions!L$54:L$62,Assumptions!$B$54:$B$62,"=2 - 3 GHz",Assumptions!$C$54:$C$62,"<>Macro") -> 186 | L49: 186 | M49: 186 | N49: 186 | O49: 186 | P49: 186 | Q49: 186 | R49: 186 | S49: 186 | T49: 186 | U49: 186 | W49: =INDEX(C49:U49,MATCH(Assumptions!$B$4,Projections!$C$3:$U$3,0)) -> 186
A50: 3 - 4 GHz | B50: MHz | C50: =SUMIFS(Assumptions!D$54:D$62,Assumptions!$B$54:$B$62,"=3 - 4 GHz",Assumptions!$C$54:$C$62,"<>Macro") -> 0 | D50: =SUMIFS(Assumptions!E$54:E$62,Assumptions!$B$54:$B$62,"=3 - 4 GHz",Assumptions!$C$54:$C$62,"<>Macro") -> 0 | E50: =SUMIFS(Assumptions!F$54:F$62,Assumptions!$B$54:$B$62,"=3 - 4 GHz",Assumptions!$C$54:$C$62,"<>Macro") -> 0 | F50: =SUMIFS(Assumptions!G$54:G$62,Assumptions!$B$54:$B$62,"=3 - 4 GHz",Assumptions!$C$54:$C$62,"<>Macro") -> 133 | G50: =SUMIFS(Assumptions!H$54:H$62,Assumptions!$B$54:$B$62,"=3 - 4 GHz",Assumptions!$C$54:$C$62,"<>Macro") -> 133 | H50: =SUMIFS(Assumptions!I$54:I$62,Assumptions!$B$54:$B$62,"=3 - 4 GHz",Assumptions!$C$54:$C$62,"<>Macro") -> 133 | I50: =SUMIFS(Assumptions!J$54:J$62,Assumptions!$B$54:$B$62,"=3 - 4 GHz",Assumptions!$C$54:$C$62,"<>Macro") -> 133 | J50: =SUMIFS(Assumptions!K$54:K$62,Assumptions!$B$54:$B$62,"=3 - 4 GHz",Assumptions!$C$54:$C$62,"<>Macro") -> 133 | K50: =SUMIFS(Assumptions!L$54:L$62,Assumptions!$B$54:$B$62,"=3 - 4 GHz",Assumptions!$C$54:$C$62,"<>Macro") -> 133 | L50: 133 | M50: 133 | N50: 133 | O50: 133 | P50: 133 | Q50: 133 | R50: 133 | S50: 133 | T50: 133 | U50: 133 | W50: =INDEX(C50:U50,MATCH(Assumptions!$B$4,Projections!$C$3:$U$3,0)) -> 133
A51: 4 - 6 GHz | B51: MHz | C51: =SUMIFS(Assumptions!D$54:D$62,Assumptions!$B$54:$B$62,"=4 - 6 GHz",Assumptions!$C$54:$C$62,"<>Macro") -> 0 | D51: =SUMIFS(Assumptions!E$54:E$62,Assumptions!$B$54:$B$62,"=4 - 6 GHz",Assumptions!$C$54:$C$62,"<>Macro") -> 0 | E51: =SUMIFS(Assumptions!F$54:F$62,Assumptions!$B$54:$B$62,"=4 - 6 GHz",Assumptions!$C$54:$C$62,"<>Macro") -> 0 | F51: =SUMIFS(Assumptions!G$54:G$62,Assumptions!$B$54:$B$62,"=4 - 6 GHz",Assumptions!$C$54:$C$62,"<>Macro") -> 0 | G51: =SUMIFS(Assumptions!H$54:H$62,Assumptions!$B$54:$B$62,"=4 - 6 GHz",Assumptions!$C$54:$C$62,"<>Macro") -> 0 | H51: =SUMIFS(Assumptions!I$54:I$62,Assumptions!$B$54:$B$62,"=4 - 6 GHz",Assumptions!$C$54:$C$62,"<>Macro") -> 0 | I51: =SUMIFS(Assumptions!J$54:J$62,Assumptions!$B$54:$B$62,"=4 - 6 GHz",Assumptions!$C$54:$C$62,"<>Macro") -> 0 | J51: =SUMIFS(Assumptions!K$54:K$62,Assumptions!$B$54:$B$62,"=4 - 6 GHz",Assumptions!$C$54:$C$62,"<>Macro") -> 0 | K51: =SUMIFS(Assumptions!L$54:L$62,Assumptions!$B$54:$B$62,"=4 - 6 GHz",Assumptions!$C$54:$C$62,"<>Macro") -> 0 | L51: 0 | M51: 0 | N51: 0 | O51: 0 | P51: 0 | Q51: 0 | R51: 0 | S51: 0 | T51: 0 | U51: 0 | W51: =INDEX(C51:U51,MATCH(Assumptions!$B$4,Projections!$C$3:$U$3,0)) -> 0

Sheet Spectrum Opt
A1: Spectrum Optimisation | E1: Use Spectrum optimisation button to run model
A2: 2012
B3: Macro Cells | K3: Small Cells
B4: 0-50% | D4: 50-80% | F4: 80-90% | H4: 90-100% | K4: 0-50% | M4: 50-80% | O4: 80-90% | Q4: 90-100%
B5: Out/Out | C5: Out/In | D5: Out/Out | E5: Out/In | F5: Out/Out | G5: Out/In | H5: Out/Out | I5: Out/In | K5: Out/Out | L5: Out/In | M5: Out/Out | N5: Out/In | O5: Out/Out | P5: Out/In | Q5: Out/Out | R5: Out/In
A6: Sub 1 GHz | B6: 0.3820308555 | C6: =1-B6 -> 0.6179691445 | D6: 0.3697365601 | E6: =1-D6 -> 0.6302634399 | F6: 0 | G6: =1-F6 -> 1 | H6: 0 | I6: =1-H6 -> 1 | K6: 1 | L6: =1-K6 -> 0 | M6: 1 | N6: =1-M6 -> 0 | O6: 1 | P6: =1-O6 -> 0 | Q6: 1 | R6: =1-Q6 -> 0
A7: 1 - 2 GHz | B7: 0 | C7: =1-B7 -> 1 | D7: 0 | E7: =1-D7 -> 1 | F7: 0 | G7: =1-F7 -> 1 | H7: 0 | I7: =1-H7 -> 1 | K7: 1 | L7: =1-K7 -> 0 | M7: 1 | N7: =1-M7 -> 0 | O7: 1 | P7: =1-O7 -> 0 | Q7: 1 | R7: =1-Q7 -> 0
A8: 2 - 3 GHz | B8: 0.3746697595 | C8: =1-B8 -> 0.6253302405 | D8: 0.4439633729 | E8: =1-D8 -> 0.5560366271 | F8: 0.4893881803 | G8: =1-F8 -> 0.5106118197 | H8: 0.4602839258 | I8: =1-H8 -> 0.5397160742 | K8: 1 | L8: =1-K8 -> 0 | M8: 1 | N8: =1-M8 -> 0 | O8: 1 | P8: =1-O8 -> 0 | Q8: 1 | R8: =1-Q8 -> 0
A9: 3 - 4 GHz | B9: 0.5 | C9: =1-B9 -> 0.5 | D9: 0.5 | E9: =1-D9 -> 0.5 | F9: 0.5 | G9: =1-F9 -> 0.5 | H9: 0.5 | I9: =1-H9 -> 0.5 | K9: 1 | L9: =1-K9 -> 0 | M9: 1 | N9: =1-M9 -> 0 | O9: 1 | P9: =1-O9 -> 0 | Q9: 1 | R9: =1-Q9 -> 0
A10: 4 - 6 GHz | B10: 0.5 | C10: =1-B10 -> 0.5 | D10: 0.5 | E10: =1-D10 -> 0.5 | F10: 0.5 | G10: =1-F10 -> 0.5 | H10: 0.5 | I10: =1-H10 -> 0.5 | K10: 1 | L10: =1-K10 -> 0 | M10: 1 | N10: =1-M10 -> 0 | O10: 1 | P10: =1-O10 -> 0 | Q10: 1 | R10: =1-Q10 -> 0
A12: 2012 Capacity per person | B12: ='Capacity Model'!F13 -> 0.499083901 | C12: ='Capacity Model'!G13 -> 0.4990839064 | D12: ='Capacity Model'!F14 -> 0.5090480536 | E12: ='Capacity Model'!G14 -> 0.5090480573 | F12: ='Capacity Model'!F15 -> 0.582694178 | G12: ='Capacity Model'!G15 -> 0.582694185 | H12: ='Capacity Model'!F16 -> 0.6739413745 | I12: ='Capacity Model'!G16 -> 0.6739413735
A13: 2012 Capacity per person | B13: =MIN(B12:C12) -> 0.499083901 | D13: =MIN(D12:E12) -> 0.5090480536 | F13: =MIN(F12:G12) -> 0.582694178 | H13: 0.6739413735
A15: =Assumptions!B4 -> 2030
B16: Macro Cells | K16: Small Cells
B17: 0-50% | D17: 50-80% | F17: 80-90% | H17: 90-100% | K17: 0-50% | M17: 50-80% | O17: 80-90% | Q17: 90-100%
B18: Out/Out | C18: Out/In | D18: Out/Out | E18: Out/In | F18: Out/Out | G18: Out/In | H18: Out/Out | I18: Out/In | K18: Out/Out | L18: Out/In | M18: Out/Out | N18: Out/In | O18: Out/Out | P18: Out/In | Q18: Out/Out | R18: Out/In
A19: Sub 1 GHz | B19: 0 | C19: =1-B19 -> 1 | D19: 0 | E19: =1-D19 -> 1 | F19: 8.264767389e-07 | G19: =1-F19 -> 0.9999991735 | H19: 9.725718063e-07 | I19: =1-H19 -> 0.9999990274 | K19: 1 | L19: =1-K19 -> 0 | M19: 1 | N19: =1-M19 -> 0 | O19: 1 | P19: =1-O19 -> 0 | Q19: 1 | R19: =1-Q19 -> 0
A20: 1 - 2 GHz | B20: 1 | C20: =1-B20 -> 0 | D20: 0.4328701556 | E20: =1-D20 -> 0.5671298444 | F20: 8.168729226e-07 | G20: =1-F20 -> 0.9999991831 | H20: 9.060457793e-07 | I20: =1-H20 -> 0.999999094 | K20: 1 | L20: =1-K20 -> 0 | M20: 1 | N20: =1-M20 -> 0 | O20: 1 | P20: =1-O20 -> 0 | Q20: 1 | R20: =1-Q20 -> 0
A21: 2 - 3 GHz | B21: 0.6787162056 | C21: =1-B21 -> 0.3212837944 | D21: 0.9999815274 | E21: =1-D21 -> 1.847262896e-05 | F21: 0.9512275742 | G21: =1-F21 -> 0.04877242582 | H21: 0.9222432285 | I21: =1-H21 -> 0.07775677154 | K21: 1 | L21: =1-K21 -> 0 | M21: 1 | N21: =1-M21 -> 0 | O21: 1 | P21: =1-O21 -> 0 | Q21: 1 | R21: =1-Q21 -> 0
A22: 3 - 4 GHz | B22: 1 | C22: =1-B22 -> 0 | D22: 1 | E22: =1-D22 -> 0 | F22: 1 | G22: =1-F22 -> 0 | H22: 1 | I22: =1-H22 -> 0 | K22: 1 | L22: =1-K22 -> 0 | M22: 1 | N22: =1-M22 -> 0 | O22: 1 | P22: =1-O22 -> 0 | Q22: 1 | R22: =1-Q22 -> 0
A23: 4 - 6 GHz | B23: 1 | C23: =1-B23 -> 0 | D23: 1 | E23: =1-D23 -> 0 | F23: 1 | G23: =1-F23 -> 0 | H23: 1 | I23: =1-H23 -> 0 | K23: 1 | L23: =1-K23 -> 0 | M23: 1 | N23: =1-M23 -> 0 | O23: 1 | P23: =1-O23 -> 0 | Q23: 1 | R23: =1-Q23 -> 0
A25: =CONCATENATE(Assumptions!$B$4," Capacity per person") -> 2030 Capacity per person | B25: ='Capacity Model'!F20 -> 43.13507996 | C25: ='Capacity Model'!G20 -> 43.13508945 | D25: ='Capacity Model'!F21 -> 24.51462119 | E25: ='Capacity Model'!G21 -> 24.51462242 | F25: ='Capacity Model'!F22 -> 23.19685384 | G25: ='Capacity Model'!G22 -> 23.19685384 | H25: ='Capacity Model'!F23 -> 27.63839313 | I25: ='Capacity Model'!G23 -> 27.63839377
A26: =CONCATENATE(Assumptions!$B$4," Capacity per person") -> 2030 Capacity per person | B26: =MIN(B25:C25) -> 43.13507996 | D26: =MIN(D25:E25) -> 24.51462119 | F26: =MIN(F25:G25) -> 23.19685384 | H26: 27.63839313
A28: =CONCATENATE(Assumptions!$B$4," with shock") -> 2030 with shock
B29: Macro Cells | K29: Small Cells
B30: 0-50% | D30: 50-80% | F30: 80-90% | H30: 90-100% | K30: 0-50% | M30: 50-80% | O30: 80-90% | Q30: 90-100%
B31: Out/Out | C31: Out/In | D31: Out/Out | E31: Out/In | F31: Out/Out | G31: Out/In | H31: Out/Out | I31: Out/In | K31: Out/Out | L31: Out/In | M31: Out/Out | N31: Out/In | O31: Out/Out | P31: Out/In | Q31: Out/Out | R31: Out/In
A32: Sub 1 GHz | B32: 0 | C32: =1-B32 -> 1 | D32: 5.080118617e-13 | E32: =1-D32 -> 1 | F32: 2.609399335e-07 | G32: =1-F32 -> 0.9999997391 | H32: 6.687059131e-07 | I32: =1-H32 -> 0.9999993313 | K32: 1 | L32: =1-K32 -> 0 | M32: 1 | N32: =1-M32 -> 0 | O32: 1 | P32: =1-O32 -> 0 | Q32: 1 | R32: =1-Q32 -> 0
A33: 1 - 2 GHz | B33: 1 | C33: =1-B33 -> 0 | D33: 0.4328701525 | E33: =1-D33 -> 0.5671298475 | F33: 0 | G33: =1-F33 -> 1 | H33: 6.750375435e-07 | I33: =1-H33 -> 0.999999325 | K33: 1 | L33: =1-K33 -> 0 | M33: 1 | N33: =1-M33 -> 0 | O33: 1 | P33: =1-O33 -> 0 | Q33: 1 | R33: =1-Q33 -> 0
A34: 2 - 3 GHz | B34: 0.6787162055 | C34: =1-B34 -> 0.3212837945 | D34: 0.9999815296 | E34: =1-D34 -> 1.847042601e-05 | F34: 0.9512283789 | G34: =1-F34 -> 0.04877162107 | H34: 0.9222435718 | I34: =1-H34 -> 0.07775642819 | K34: 1 | L34: =1-K34 -> 0 | M34: 1 | N34: =1-M34 -> 0 | O34: 1 | P34: =1-O34 -> 0 | Q34: 1 | R34: =1-Q34 -> 0
A35: 3 - 4 GHz | B35: 1 | C35: =1-B35 -> 0 | D35: 1 | E35: =1-D35 -> 0 | F35: 1 | G35: =1-F35 -> 0 | H35: 1 | I35: =1-H35 -> 0 | K35: 1 | L35: =1-K35 -> 0 | M35: 1 | N35: =1-M35 -> 0 | O35: 1 | P35: =1-O35 -> 0 | Q35: 1 | R35: =1-Q35 -> 0
A36: 4 - 6 GHz | B36: 1 | C36: =1-B36 -> 0 | D36: 1 | E36: =1-D36 -> 0 | F36: 1 | G36: =1-F36 -> 0 | H36: 1 | I36: =1-H36 -> 0 | K36: 1 | L36: =1-K36 -> 0 | M36: 1 | N36: =1-M36 -> 0 | O36: 1 | P36: =1-O36 -> 0 | Q36: 1 | R36: =1-Q36 -> 0
A38: =CONCATENATE(Assumptions!$B$4," Capacity per person") -> 2030 Capacity per person | B38: ='Capacity Model'!F34 -> 43.13507996 | C38: ='Capacity Model'!G34 -> 43.13508946 | D38: ='Capacity Model'!F35 -> 24.5146212 | E38: ='Capacity Model'!G35 -> 24.51462241 | F38: ='Capacity Model'!F36 -> 23.19685576 | G38: ='Capacity Model'!G36 -> 23.1968559 | H38: ='Capacity Model'!F37 -> 27.63839444 | I38: ='Capacity Model'!G37 -> 27.63839509
A39: =CONCATENATE(Assumptions!$B$4," Capacity per person") -> 2030 Capacity per person | B39: =MIN(B38:C38) -> 43.13507996 | D39: =MIN(D38:E38) -> 24.5146212 | F39: =MIN(F38:G38) -> 23.19685576 | H39: 27.63839444

Sheet Capacity Model
A1: Capacity model
C3: Macro Cell Spectrum Availability | H3: Small Cell Spectrum Availability
A4: Spectrum Availability | B4: Unit | C4: 2012 Base Case | D4: =CONCATENATE(Assumptions!$B$4," Base Case") -> 2030 Base Case | E4: =CONCATENATE(Assumptions!$B$4," Increase") -> 2030 Increase | F4: =CONCATENATE(Assumptions!$B$4," Total") -> 2030 Total | H4: 2012 Base Case | I4: =CONCATENATE(Assumptions!$B$4," Base Case") -> 2030 Base Case | J4: =CONCATENATE(Assumptions!$B$4," Shock") -> 2030 Shock | K4: =CONCATENATE(Assumptions!$B$4," Total") -> 2030 Total
A5: Sub 1 GHz | B5: MHz | C5: =Projections!C40 -> 10 | D5: =Projections!W40 -> 90 | E5: 0 | F5: =D5+E5 -> 90 | H5: =Projections!C47 -> 0 | I5: =Projections!W47 -> 0 | J5: 0 | K5: =I5+J5 -> 0
A6: 1 - 2 GHz | B6: MHz | C6: =Projections!C41 -> 22 | D6: =Projections!W41 -> 72 | E6: 0 | F6: =D6+E6 -> 72 | H6: =Projections!C48 -> 0 | I6: =Projections!W48 -> 0 | J6: 0 | K6: =I6+J6 -> 0
A7: 2 - 3 GHz | B7: MHz | C7: =Projections!C42 -> 60 | D7: =Projections!W42 -> 158 | E7: 0 | F7: 158 | H7: =Projections!C49 -> 60 | I7: =Projections!W49 -> 186 | J7: 0 | K7: 186
A8: 3 - 4 GHz | B8: MHz | C8: =Projections!C43 -> 0 | D8: =Projections!W43 -> 0 | E8: 0 | F8: 0 | H8: =Projections!C50 -> 0 | I8: =Projections!W50 -> 133 | J8: 0 | K8: 133
A9: 4 - 6 GHz | B9: MHz | C9: =Projections!C44 -> 0 | D9: =Projections!W44 -> 0 | E9: 0 | F9: 0 | H9: =Projections!C51 -> 0 | I9: =Projections!W51 -> 0 | J9: 0 | K9: 0
E10: Add additional downlink spectrum to test sensitivity | J10: Add additional downlink spectrum to test sensitivity
B11: Total | F11: Per Person
A12: 2012 Base Capacity | B12: Out/Out | C12: Out/In | D12: Total | F12: Out/Out | G12: Out/In | H12: Average
A13: 0 - 50% | B13: =SUMPRODUCT($C$5:$C$9,Assumptions!B$8:B$12,'Spectrum Opt'!B$6:B$10)*Projections!$C$6*Projections!$C10+SUMPRODUCT($H$5:$H$9,Assumptions!B$14:B$18,'Spectrum Opt'!K$6:K$10)*Projections!$C$7*Projections!$C16 -> 3566979.466 | C13: =SUMPRODUCT($C$5:$C$9,Assumptions!C$8:C$12,'Spectrum Opt'!C$6:C$10)*Projections!$C$6*Projections!$C10+SUMPRODUCT($H$5:$H$9,Assumptions!C$14:C$18,'Spectrum Opt'!L$6:L$10)*Projections!$C$7*Projections!$C16 -> 5350469.257 | F13: =B13/Projections!C34 -> 0.499083901 | G13: =C13/Projections!C28 -> 0.4990839064
A14: 50 - 80% | B14: =SUMPRODUCT($C$5:$C$9,Assumptions!E$8:E$12,'Spectrum Opt'!D$6:D$10)*Projections!$C$6*Projections!$C11+SUMPRODUCT($H$5:$H$9,Assumptions!E$14:E$18,'Spectrum Opt'!M$6:M$10)*Projections!$C$7*Projections!$C17 -> 2184177.319 | C14: =SUMPRODUCT($C$5:$C$9,Assumptions!F$8:F$12,'Spectrum Opt'!E$6:E$10)*Projections!$C$6*Projections!$C11+SUMPRODUCT($H$5:$H$9,Assumptions!F$14:F$18,'Spectrum Opt'!N$6:N$10)*Projections!$C$7*Projections!$C17 -> 3276266.003 | F14: =B14/Projections!C35 -> 0.5090480536 | G14: =C14/Projections!C29 -> 0.5090480573
A15: 80 - 90% | B15: =SUMPRODUCT($C$5:$C$9,Assumptions!H$8:H$12,'Spectrum Opt'!F$6:F$10)*Projections!$C$6*Projections!$C12+SUMPRODUCT($H$5:$H$9,Assumptions!H$14:H$18,'Spectrum Opt'!O$6:O$10)*Projections!$C$7*Projections!$C18 -> 822844.7368 | C15: =SUMPRODUCT($C$5:$C$9,Assumptions!I$8:I$12,'Spectrum Opt'!G$6:G$10)*Projections!$C$6*Projections!$C12+SUMPRODUCT($H$5:$H$9,Assumptions!I$14:I$18,'Spectrum Opt'!P$6:P$10)*Projections!$C$7*Projections!$C18 -> 1234267.12 | F15: =B15/Projections!C36 -> 0.582694178 | G15: =C15/Projections!C30 -> 0.582694185
A16: 90 - 100% | B16: =SUMPRODUCT($C$5:$C$9,Assumptions!K$8:K$12,'Spectrum Opt'!H$6:H$10)*Projections!$C$6*Projections!$C13+SUMPRODUCT($H$5:$H$9,Assumptions!K$14:K$18,'Spectrum Opt'!Q$6:Q$10)*Projections!$C$7*Projections!$C19 -> 1245487.635 | C16: =SUMPRODUCT($C$5:$C$9,Assumptions!L$8:L$12,'Spectrum Opt'!I$6:I$10)*Projections!$C$6*Projections!$C13+SUMPRODUCT($H$5:$H$9,Assumptions!L$14:L$18,'Spectrum Opt'!R$6:R$10)*Projections!$C$7*Projections!$C19 -> 1868231.449 | F16: =B16/Projections!C37 -> 0.6739413745 | G16: =C16/Projections!C31 -> 0.6739413735
A17: Total / Average | B17: =SUM(B13:B16) -> 7819489.157 | C17: =SUM(C13:C16) -> 11729233.83 | D17: =SUM(B13:C16) -> 19548722.99 | F17: =SUM(B13:B16)/SUM(Projections!$C$34:$C$37) -> 0.5320116238 | G17: =SUM(C13:C16)/SUM(Projections!$C$28:$C$31) -> 0.532011628 | H17: =SUM(B13:C16)/(SUM(Projections!C28:C31)+SUM(Projections!C34:C37)) -> 0.5320116264
A19: =CONCATENATE(Assumptions!$B$4," Base Capacity") -> 2030 Base Capacity | B19: Out/Out | C19: Out/In | D19: Total | F19: Out/Out | G19: Out/In | H19: Average
A20: 0 - 50% | B20: =SUMPRODUCT($D$5:$D$9,Assumptions!B$8:B$12,'Spectrum Opt'!B$19:B$23)*Projections!$W$6*Projections!$W10+SUMPRODUCT($I$5:$I$9,Assumptions!B$14:B$18,'Spectrum Opt'!K$19:K$23)*Projections!$W$7*Projections!$W16 -> 308288735 | C20: =SUMPRODUCT($D$5:$D$9,Assumptions!C$8:C$12,'Spectrum Opt'!C$19:C$23)*Projections!$W$6*Projections!$W10+SUMPRODUCT($I$5:$I$9,Assumptions!C$14:C$18,'Spectrum Opt'!L$19:L$23)*Projections!$W$7*Projections!$W16 -> 92486640.85 | F20: =B20/Projections!W34 -> 43.13507996 | G20: =C20/Projections!W28 -> 43.13508945
A21: 50 - 80% | B21: =SUMPRODUCT($D$5:$D$9,Assumptions!E$8:E$12,'Spectrum Opt'!D$19:D$23)*Projections!$W$6*Projections!$W11+SUMPRODUCT($I$5:$I$9,Assumptions!E$14:E$18,'Spectrum Opt'!M$19:M$23)*Projections!$W$7*Projections!$W17 -> 105185118 | C21: =SUMPRODUCT($D$5:$D$9,Assumptions!F$8:F$12,'Spectrum Opt'!E$19:E$23)*Projections!$W$6*Projections!$W11+SUMPRODUCT($I$5:$I$9,Assumptions!F$14:F$18,'Spectrum Opt'!N$19:N$23)*Projections!$W$7*Projections!$W17 -> 63111073.98 | F21: =B21/Projections!W35 -> 24.51462119 | G21: =C21/Projections!W29 -> 24.51462242
A22: 80 - 90% | B22: =SUMPRODUCT($D$5:$D$9,Assumptions!H$8:H$12,'Spectrum Opt'!F$19:F$23)*Projections!$W$6*Projections!$W12+SUMPRODUCT($I$5:$I$9,Assumptions!H$14:H$18,'Spectrum Opt'!O$19:O$23)*Projections!$W$7*Projections!$W18 -> 32757164.58 | C22: =SUMPRODUCT($D$5:$D$9,Assumptions!I$8:I$12,'Spectrum Opt'!G$19:G$23)*Projections!$W$6*Projections!$W12+SUMPRODUCT($I$5:$I$9,Assumptions!I$14:I$18,'Spectrum Opt'!P$19:P$23)*Projections!$W$7*Projections!$W18 -> 29481448.12 | F22: =B22/Projections!W36 -> 23.19685384 | G22: =C22/Projections!W30 -> 23.19685384
A23: 90 - 100% | B23: =SUMPRODUCT($D$5:$D$9,Assumptions!K$8:K$12,'Spectrum Opt'!H$19:H$23)*Projections!$W$6*Projections!$W13+SUMPRODUCT($I$5:$I$9,Assumptions!K$14:K$18,'Spectrum Opt'!Q$19:Q$23)*Projections!$W$7*Projections!$W19 -> 51077553.9 | C23: =SUMPRODUCT($D$5:$D$9,Assumptions!L$8:L$12,'Spectrum Opt'!I$19:I$23)*Projections!$W$6*Projections!$W13+SUMPRODUCT($I$5:$I$9,Assumptions!L$14:L$18,'Spectrum Opt'!R$19:R$23)*Projections!$W$7*Projections!$W19 -> 45969799.58 | F23: =B23/Projections!W37 -> 27.63839313 | G23: =C23/Projections!W31 -> 27.63839377
A24: Total / Average | B24: =SUM(B20:B23) -> 497308571.5 | C24: =SUM(C20:C23) -> 231048962.5 | D24: =SUM(B20:C23) -> 728357534 | F24: =SUM(B20:B23)/SUM(Projections!W34:W37) -> 33.83519503 | G24: =SUM(C20:C23)/SUM(Projections!W28:W31) -> 30.19172429 | H24: =SUM(B20:C23)/(SUM(Projections!W28:W31)+SUM(Projections!W34:W37)) -> 32.5876954
A26: =CONCATENATE(Assumptions!$B$4," Relative Base Capacity") -> 2030 Relative Base Capacity | B26: Out/Out | C26: Out/In | D26: Total | F26: Out/Out | G26: Out/In | H26: Average
A27: 0 - 50% | B27: =B20/B13 -> 86.42851407 | C27: =C20/C13 -> 17.28570643 | F27: =F20/F13 -> 86.42851407 | G27: 86.42853216
A28: 50 - 80% | B28: =B21/B14 -> 48.15777413 | C28: 19.26311048 | F28: 48.15777413 | G28: 48.1577762
A29: 80 - 90% | B29: =B22/B15 -> 39.80965438 | C29: 23.88579234 | F29: 39.80965438 | G29: 39.80965391
A30: 90 - 100% | B30: 41.01008511 | C30: 24.60605167 | F30: 41.01008511 | G30: 41.01008612
A31: Total / Average | D31: 37.25857359 | F31: =F24/F17 -> 63.59860107 | G31: 56.75012105 | H31: =H24/H17 -> 61.25372791
A33: =CONCATENATE(Assumptions!$B$4," Capacity With Increase") -> 2030 Capacity With Increase | B33: Out/Out | C33: Out/In | D33: Total | F33: Out/Out | G33: Out/In | H33: Average
A34: 0 - 50% | B34: =SUMPRODUCT($F$5:$F$9,Assumptions!B$8:B$12,'Spectrum Opt'!B$32:B$36)*Projections!$W$6*Projections!$W10+SUMPRODUCT($K$5:$K$9,Assumptions!B$14:B$18,'Spectrum Opt'!K$32:K$36)*Projections!$W$7*Projections!$W16 -> 308288735 | C34: =SUMPRODUCT($F$5:$F$9,Assumptions!C$8:C$12,'Spectrum Opt'!C$32:C$36)*Projections!$W$6*Projections!$W10+SUMPRODUCT($K$5:$K$9,Assumptions!C$14:C$18,'Spectrum Opt'!L$32:L$36)*Projections!$W$7*Projections!$W16 -> 92486640.85 | F34: =B34/Projections!W34 -> 43.13507996 | G34: =C34/Projections!W28 -> 43.13508946
A35: 50 - 80% | B35: =SUMPRODUCT($F$5:$F$9,Assumptions!E$8:E$12,'Spectrum Opt'!D$32:D$36)*Projections!$W$6*Projections!$W11+SUMPRODUCT($K$5:$K$9,Assumptions!E$14:E$18,'Spectrum Opt'!M$32:M$36)*Projections!$W$7*Projections!$W17 -> 105185118.1 | C35: =SUMPRODUCT($F$5:$F$9,Assumptions!F$8:F$12,'Spectrum Opt'!E$32:E$36)*Projections!$W$6*Projections!$W11+SUMPRODUCT($K$5:$K$9,Assumptions!F$14:F$18,'Spectrum Opt'!N$32:N$36)*Projections!$W$7*Projections!$W17 -> 63111073.95 | F35: =B35/Projections!W35 -> 24.5146212 | G35: =C35/Projections!W29 -> 24.51462241
A36: 80 - 90% | B36: =SUMPRODUCT($F$5:$F$9,Assumptions!H$8:H$12,'Spectrum Opt'!F$32:F$36)*Projections!$W$6*Projections!$W12+SUMPRODUCT($K$5:$K$9,Assumptions!H$14:H$18,'Spectrum Opt'!O$32:O$36)*Projections!$W$7*Projections!$W18 -> 32757167.3 | C36: =SUMPRODUCT($F$5:$F$9,Assumptions!I$8:I$12,'Spectrum Opt'!G$32:G$36)*Projections!$W$6*Projections!$W12+SUMPRODUCT($K$5:$K$9,Assumptions!I$14:I$18,'Spectrum Opt'!P32:P36)*Projections!$W$7*Projections!$W18 -> 29481450.75 | F36: =B36/Projections!W36 -> 23.19685576 | G36: =C36/Projections!W30 -> 23.1968559
A37: 90 - 100% | B37: =SUMPRODUCT($F$5:$F$9,Assumptions!K$8:K$12,'Spectrum Opt'!H$32:H$36)*Projections!$W$6*Projections!$W13+SUMPRODUCT($K$5:$K$9,Assumptions!K$14:K$18,'Spectrum Opt'!Q$32:Q$36)*Projections!$W$7*Projections!$W19 -> 51077556.33 | C37: =SUMPRODUCT($F$5:$F$9,Assumptions!L$8:L$12,'Spectrum Opt'!I$32:I$36)*Projections!$W$6*Projections!$W13+SUMPRODUCT($K$5:$K$9,Assumptions!L$14:L$18,'Spectrum Opt'!R$32:R$36)*Projections!$W$7*Projections!$W19 -> 45969801.77 | F37: =B37/Projections!W37 -> 27.63839444 | G37: =C37/Projections!W31 -> 27.63839509
A38: Total / Average | B38: =SUM(B34:B37) -> 497308576.7 | C38: =SUM(C34:C37) -> 231048967.3 | D38: =SUM(B34:C37) -> 728357544 | F38: =SUM(B34:B37)/SUM(Projections!W34:W37) -> 33.83519538 | G38: =SUM(C34:C37)/SUM(Projections!W28:W31) -> 30.19172492 | H38: =SUM(B34:C37)/(SUM(Projections!W28:W31)+SUM(Projections!W34:W37)) -> 32.58769585
A40: =CONCATENATE(Assumptions!$B$4," Relative Capacity with Increase") -> 2030 Relative Capacity with Increase | B40: Out/Out | C40: Out/In | D40: Total | F40: Out/Out | G40: Out/In | H40: Average
A41: 0 - 50% | B41: =B34/B13 -> 86.42851407 | C41: =C34/C13 -> 17.28570643 | F41: 86.42851407 | G41: =G34/G13 -> 86.42853217
A42: 50 - 80% | B42: =B35/B14 -> 48.15777416 | C42: 19.26311047 | F42: 48.15777416 | G42: =G35/G14 -> 48.15777617
A43: 80 - 90% | B43: =B36/B15 -> 39.80965768 | C43: =C36/C15 -> 23.88579447 | F43: =F36/F15 -> 39.80965768 | G43: =G36/G15 -> 39.80965745
A44: 90 - 100% | B44: =B37/B16 -> 41.01008706 | C44: =C37/C16 -> 24.60605285 | F44: =F37/F16 -> 41.01008706 | G44: 41.01008808
A45: Total / Average | D45: =D38/D17 -> 37.2585741 | F45: =F38/F17 -> 63.59860174 | G45: =G38/G17 -> 56.75012223 | H45: 61.25372875
A47: =CONCATENATE("% Increase in Capacity in ",Assumptions!$B$4) -> % Increase in Capacity in 2030 | B47: Out/Out | C47: Out/In | D47: Total | F47: Out/Out | G47: Out/In | H47: Average
A48: 0 - 50% | B48: =(B34-B20)/B20 -> -3.700456519e-11 | C48: =(C34-C20)/C20 -> 1.001201384e-10 | F48: -3.700448973e-11 | G48: 1.001201809e-10
A49: 50 - 80% | B49: =(B35-B21)/B21 -> 6.000552118e-10 | C49: =(C35-C21)/C21 -> -4.914094319e-10 | F49: =(F35-F21)/F21 -> 6.000551492e-10 | G49: -4.91409389e-10
A50: 80 - 90% | B50: =(B36-B22)/B22 -> 8.291299987e-08 | C50: =(C36-C22)/C22 -> 8.889936026e-08 | F50: 8.291299983e-08 | G50: 8.889936025e-08
A51: 90 - 100% | B51: =(B37-B23)/B23 -> 4.762805624e-08 | C51: =(C37-C23)/C23 -> 4.773746262e-08 | F51: 4.762805631e-08 | G51: 4.773746265e-08
A52: Total / Average | D52: =(D38-D24)/D24 -> 1.372133569e-08 | F52: =(F38-F24)/F24 -> 1.045714595e-08 | G52: 2.074716046e-08 | H52: 1.372133577e-08
B54: Capacity | H54: Capacity relative to 2012
A55: Total Outdoor capacity | B55: No additional spectrum | C55: Current priorities | D55: High priorities | E55: Medium - High Priorities | F55: Medium Priorities | H55: No additional spectrum | I55: Current priorities | J55: High priorities | K55: Medium - High Priorities | L55: Medium Priorities
A56: 2012 | B56: 7819489.157 | C56: 0 | D56: 0 | E56: 0 | F56: 0 | G56: Paste value from B17 | H56: =B56/$B$56 -> 1 | I56: 0 | J56: 0 | K56: 0 | L56: 0
B57: 22159912.02 | C57: =B57 -> 22159912.02 | D57: =C57 -> 22159912.02 | E57: 0 | F57: 0 | G57: Paste value from B24/B38 | H57: 2.833933467 | I57: 0 | J57: 0 | K57: 0 | L57: 0
B58: =(B$64-B$57)/7+B57 -> 32208901.83 | C58: =(C$64-C$57)/7+C57 -> 34767452.63 | D58: =(D$64-D$57)/7+D57 -> 38581552.1 | E58: 0 | F58: 0 | H58: 4.119054478 | I58: =(C58/$B$56)-SUM($H58:H58) -> 0.3272017834 | J58: =(D58/$B$56)-SUM($H58:I58) -> 0.4877683692 | K58: 0 | L58: 0
B59: =(B$64-B$57)/7+B58 -> 42257891.64 | C59: 47374993.23 | D59: 55003192.18 | E59: 0 | F59: 0 | H59: 5.404175489 | I59: =(C59/$B$56)-SUM($H59:H59) -> 0.6544035668 | J59: =(D59/$B$56)-SUM($H59:I59) -> 0.9755367384 | K59: 0 | L59: 0
B60: 52306881.45 | C60: 59982533.84 | D60: 71424832.27 | E60: 0 | F60: 0 | H60: 6.6892965 | I60: =(C60/$B$56)-SUM($H60:H60) -> 0.9816053502 | J60: =(D60/$B$56)-SUM($H60:I60) -> 1.463305108 | K60: 0 | L60: 0
B61: 62355871.26 | C61: 72590074.45 | D61: 87846472.35 | E61: 0 | F61: 0 | H61: 7.974417511 | I61: =(C61/$B$56)-SUM($H61:H61) -> 1.308807134 | J61: =(D61/$B$56)-SUM($H61:I61) -> 1.951073477 | K61: 0 | L61: 0
B62: 72404861.07 | C62: 85197615.06 | D62: 104268112.4 | E62: 0 | F62: 0 | H62: 9.259538522 | I62: =(C62/$B$56)-SUM($H62:H62) -> 1.636008917 | J62: =(D62/$B$56)-SUM($H62:I62) -> 2.438841846 | K62: 0 | L62: 0
B63: 82453850.89 | C63: 97805155.67 | D63: 120689752.5 | E63: 0 | F63: 0 | H63: 10.54465953 | I63: =(C63/$B$56)-SUM($H63:H63) -> 1.9632107 | J63: =(D63/$B$56)-SUM($H63:I63) -> 2.926610215 | K63: 0 | L63: 0
A64: 2020 | B64: 92502840.7 | C64: 110412696.3 | D64: 137111392.6 | E64: =D64 -> 137111392.6 | F64: 0 | G64: Paste value from B24/B38 with modelling year set to 2020 | H64: 11.82978054 | I64: =(C64/$B$56)-SUM($H64:H64) -> 2.290412484 | J64: =(D64/$B$56)-SUM($H64:I64) -> 3.414378584 | K64: =(E64/$B$56)-SUM($H64:J64) -> 0 | L64: 0
B65: =(B$69-B$64)/5+B64 -> 111502083 | C65: =(C$69-C$64)/5+C64 -> 134208146.8 | D65: =(D$69-D$64)/5+D64 -> 167101143.7 | E65: =(E$69-E$64)/5+E64 -> 178888986.9 | F65: 0 | H65: 14.25950989 | I65: =(C65/$B$56)-SUM($H65:H65) -> 2.903778415 | J65: =(D65/$B$56)-SUM($H65:I65) -> 4.206540372 | K65: =(E65/$B$56)-SUM($H65:J65) -> 1.507495306 | L65: 0
B66: =(B$69-B$64)/5+B65 -> 130501325.3 | C66: =(C$69-C$64)/5+C65 -> 158003597.4 | D66: 197090894.7 | E66: 220666581.1 | F66: 0 | H66: 16.68923924 | I66: =(C66/$B$56)-SUM($H66:H66) -> 3.517144346 | J66: =(D66/$B$56)-SUM($H66:I66) -> 4.99870216 | K66: =(E66/$B$56)-SUM($H66:J66) -> 3.014990613 | L66: 0
B67: 149500567.6 | C67: 181799047.9 | D67: 227080645.8 | E67: 262444175.4 | F67: 0 | H67: 19.11896859 | I67: =(C67/$B$56)-SUM($H67:H67) -> 4.130510277 | J67: =(D67/$B$56)-SUM($H67:I67) -> 5.790863948 | K67: =(E67/$B$56)-SUM($H67:J67) -> 4.522485919 | L67: 0
B68: 168499809.9 | C68: 205594498.5 | D68: 257070396.8 | E68: 304221769.6 | F68: 0 | H68: 21.54869794 | I68: =(C68/$B$56)-SUM($H68:H68) -> 4.743876208 | J68: =(D68/$B$56)-SUM($H68:I68) -> 6.583025736 | K68: =(E68/$B$56)-SUM($H68:J68) -> 6.029981225 | L68: 0
A69: 2025 | B69: 187499052.2 | C69: 229389949 | D69: 287060147.9 | E69: 345999363.9 | F69: =E69 -> 345999363.9 | G69: Paste value from B24/B38 with modelling year set to 2025 | H69: 23.97842729 | I69: =(C69/$B$56)-SUM($H69:H69) -> 5.35724214 | J69: =(D69/$B$56)-SUM($H69:I69) -> 7.375187524 | K69: =(E69/$B$56)-SUM($H69:J69) -> 7.537476532 | L69: =(F69/$B$56)-SUM($H69:K69) -> 0
B70: =(B$74-B$69)/5+B69 -> 228508347.5 | C70: =(C$74-C$69)/5+C69 -> 282973671.7 | D70: 355177552.9 | E70: 432764440.8 | F70: 468767058.4 | H70: 29.2229253 | I70: =(C70/$B$56)-SUM($H70:H70) -> 6.965330233 | J70: =(D70/$B$56)-SUM($H70:I70) -> 9.233836089 | K70: =(E70/$B$56)-SUM($H70:J70) -> 9.922245085 | L70: =(F70/$B$56)-SUM($H70:K70) -> 4.604216071
B71: =(B$74-B$69)/5+B70 -> 269517642.8 | C71: 336557394.4 | D71: 423294957.9 | E71: 519529517.6 | F71: 591534752.9 | H71: 34.4674233 | I71: =(C71/$B$56)-SUM($H71:H71) -> 8.573418326 | J71: =(D71/$B$56)-SUM($H71:I71) -> 11.09248465 | K71: =(E71/$B$56)-SUM($H71:J71) -> 12.30701364 | L71: =(F71/$B$56)-SUM($H71:K71) -> 9.208432141
B72: 310526938.1 | C72: 390141117.2 | D72: 491412362.9 | E72: 606294594.5 | F72: 714302447.4 | H72: 39.71192131 | I72: =(C72/$B$56)-SUM($H72:H72) -> 10.18150642 | J72: =(D72/$B$56)-SUM($H72:I72) -> 12.95113322 | K72: =(E72/$B$56)-SUM($H72:J72) -> 14.69178219 | L72: =(F72/$B$56)-SUM($H72:K72) -> 13.81264821
B73: 351536233.4 | C73: 443724839.9 | D73: 559529768 | E73: 693059671.4 | F73: 837070141.9 | H73: 44.95641932 | I73: =(C73/$B$56)-SUM($H73:H73) -> 11.78959451 | J73: =(D73/$B$56)-SUM($H73:I73) -> 14.80978178 | K73: =(E73/$B$56)-SUM($H73:J73) -> 17.07655075 | L73: =(F73/$B$56)-SUM($H73:K73) -> 18.41686428
A74: 2030 | B74: 392545528.7 | C74: 497308562.6 | D74: 627647173 | E74: 779824748.2 | F74: 959837836.4 | G74: Paste value from B24/B38 with modelling year set to 2030 | H74: 50.20091733 | I74: =(C74/$B$56)-SUM($H74:H74) -> 13.39768261 | J74: =(D74/$B$56)-SUM($H74:I74) -> 16.66843035 | K74: =(E74/$B$56)-SUM($H74:J74) -> 19.4613193 | L74: =(F74/$B$56)-SUM($H74:K74) -> 23.02108035
B75: =B74/$B$56 -> 50.20091733 | C75: =C74/$B$56 -> 63.59859993 | D75: 80.26703028 | E75: 99.72834958 | F75: 122.7494299
A77: Total Indoor capacity | B77: No additional spectrum | C77: Current priorities | D77: High priorities | E77: Medium - High Priorities | F77: Medium Priorities | H77: No additional spectrum | I77: Current priorities | J77: High priorities | K77: Medium - High Priorities | L77: Medium Priorities
A78: 2012 | B78: 11729233.83 | C78: 0 | D78: 0 | E78: 0 | F78: 0 | G78: Paste value from C17 | H78: =B78/$B$78 -> 1 | I78: 0 | J78: 0 | K78: 0 | L78: 0
B79: 31408255.6 | C79: =B79 -> 31408255.6 | D79: =C79 -> 31408255.6 | E79: 0 | F79: 0 | G79: Paste value from C24/C38 with modelling year set to 2013 | H79: =B79/$B$78 -> 2.677775553 | I79: 0 | J79: 0 | K79: 0 | L79: 0
B80: =(B$86-B$79)/7+B79 -> 37588088.78 | C80: =(C$86-C$79)/7+C79 -> 39513283.25 | D80: 42440007.27 | E80: 0 | F80: 0 | H80: 3.204649965 | I80: =(C80/$B$78)-SUM($H80:H80) -> 0.164136422 | J80: =(D80/$B$78)-SUM($H80:I80) -> 0.2495238869 | K80: 0 | L80: 0
B81: =(B$86-B$79)/7+B80 -> 43767921.96 | C81: 47618310.9 | D81: 53471758.93 | E81: 0 | F81: 0 | H81: 3.731524377 | I81: =(C81/$B$78)-SUM($H81:H81) -> 0.328272844 | J81: =(D81/$B$78)-SUM($H81:I81) -> 0.4990477738 | K81: 0 | L81: 0
B82: 49947755.13 | C82: 55723338.56 | D82: 64503510.6 | E82: 0 | F82: 0 | H82: 4.258398789 | I82: =(C82/$B$78)-SUM($H82:H82) -> 0.492409266 | J82: =(D82/$B$78)-SUM($H82:I82) -> 0.7485716607 | K82: 0 | L82: 0
B83: 56127588.31 | C83: 63828366.21 | D83: 75535262.27 | E83: 0 | F83: 0 | H83: 4.785273201 | I83: =(C83/$B$78)-SUM($H83:H83) -> 0.656545688 | J83: =(D83/$B$78)-SUM($H83:I83) -> 0.9980955476 | K83: 0 | L83: 0
B84: 62307421.49 | C84: 71933393.86 | D84: 86567013.94 | E84: 0 | F84: 0 | H84: 5.312147613 | I84: =(C84/$B$78)-SUM($H84:H84) -> 0.82068211 | J84: =(D84/$B$78)-SUM($H84:I84) -> 1.247619434 | K84: 0 | L84: 0
B85: 68487254.67 | C85: 80038421.51 | D85: 97598765.6 | E85: 0 | F85: 0 | H85: 5.839022025 | I85: =(C85/$B$78)-SUM($H85:H85) -> 0.984818532 | J85: =(D85/$B$78)-SUM($H85:I85) -> 1.497143321 | K85: 0 | L85: 0
A86: 2020 | B86: 74667087.85 | C86: 88143449.16 | D86: 108630517.3 | E86: =D86 -> 108630517.3 | F86: 0 | G86: Paste value from C24/C38 with modelling year set to 2020 | H86: 6.365896437 | I86: =(C86/$B$78)-SUM($H86:H86) -> 1.148954954 | J86: =(D86/$B$78)-SUM($H86:I86) -> 1.746667208 | K86: 0 | L86: 0
B87: =(B$91-B$86)/5+B86 -> 83976434.66 | C87: =(C$91-C$86)/5+C86 -> 99577058.82 | D87: 122880731.3 | E87: 129389143.3 | F87: 0 | H87: 7.159583983 | I87: =(C87/$B$78)-SUM($H87:H87) -> 1.330063361 | J87: =(D87/$B$78)-SUM($H87:I87) -> 1.986802616 | K87: =(E87/$B$78)-SUM($H87:J87) -> 0.5548880816
B88: =(B$91-B$86)/5+B87 -> 93285781.46 | C88: 111010668.5 | D88: 137130945.3 | E88: 150147769.4 | F88: 0 | H88: 7.953271528 | I88: =(C88/$B$78)-SUM($H88:H88) -> 1.511171768 | J88: =(D88/$B$78)-SUM($H88:I88) -> 2.226938024 | K88: =(E88/$B$78)-SUM($H88:J88) -> 1.109776163
B89: 102595128.3 | C89: 122444278.1 | D89: 151381159.3 | E89: 170906395.5 | F89: 0 | H89: 8.746959074 | I89: =(C89/$B$78)-SUM($H89:H89) -> 1.692280175 | J89: =(D89/$B$78)-SUM($H89:I89) -> 2.467073432 | K89: =(E89/$B$78)-SUM($H89:J89) -> 1.664664245
B90: 111904475.1 | C90: 133877887.8 | D90: 165631373.3 | E90: 191665021.6 | F90: 0 | H90: 9.540646619 | I90: =(C90/$B$78)-SUM($H90:H90) -> 1.873388582 | J90: =(D90/$B$78)-SUM($H90:I90) -> 2.70720884 | K90: =(E90/$B$78)-SUM($H90:J90) -> 2.219552326
A91: 2025 | B91: 121213821.9 | C91: 145311497.5 | D91: 179881587.3 | E91: 212423647.6 | F91: =E91 -> 212423647.6 | G91: Paste value from C24/C38 with modelling year set to 2025 | H91: 10.33433416 | I91: =(C91/$B$78)-SUM($H91:H91) -> 2.054496989 | J91: =(D91/$B$78)-SUM($H91:I91) -> 2.947344248 | K91: =(E91/$B$78)-SUM($H91:J91) -> 2.774440408 | L91: 0
B92: =(B$96-B$91)/5+B91 -> 134817076.7 | C92: =(C$96-C$91)/5+C91 -> 162458991.5 | D92: 201312754.6 | E92: 238918204.6 | F92: 258152361.9 | H92: 11.49410768 | I92: =(C92/$B$78)-SUM($H92:H92) -> 2.356668407 | J92: =(D92/$B$78)-SUM($H92:I92) -> 3.312557643 | K92: =(E92/$B$78)-SUM($H92:J92) -> 3.206130132 | L92: =(F92/$B$78)-SUM($H92:K92) -> 1.639847716
B93: =(B$96-B$91)/5+B92 -> 148420331.4 | C93: 179606485.4 | D93: 222743921.9 | E93: 265412761.6 | F93: 303881076.2 | H93: 12.6538812 | I93: =(C93/$B$78)-SUM($H93:H93) -> 2.658839825 | J93: =(D93/$B$78)-SUM($H93:I93) -> 3.677771037 | K93: =(E93/$B$78)-SUM($H93:J93) -> 3.637819856 | L93: =(F93/$B$78)-SUM($H93:K93) -> 3.279695432
B94: 162023586.2 | C94: 196753979.4 | D94: 244175089.2 | E94: 291907318.6 | F94: 349609790.6 | H94: 13.81365472 | I94: =(C94/$B$78)-SUM($H94:H94) -> 2.961011243 | J94: =(D94/$B$78)-SUM($H94:I94) -> 4.042984432 | K94: =(E94/$B$78)-SUM($H94:J94) -> 4.06950958 | L94: =(F94/$B$78)-SUM($H94:K94) -> 4.919543148
B95: 175626841 | C95: 213901473.4 | D95: 265606256.5 | E95: 318401875.7 | F95: 395338504.9 | H95: 14.97342823 | I95: =(C95/$B$78)-SUM($H95:H95) -> 3.263182661 | J95: =(D95/$B$78)-SUM($H95:I95) -> 4.408197827 | K95: =(E95/$B$78)-SUM($H95:J95) -> 4.501199304 | L95: =(F95/$B$78)-SUM($H95:K95) -> 6.559390863
A96: 2030 | B96: 189230095.7 | C96: 231048967.4 | D96: 287037423.8 | E96: 344896432.7 | F96: 441067219.2 | G96: Paste value from C24/C38 with modelling year set to 2030 | H96: 16.13320175 | I96: =(C96/$B$78)-SUM($H96:H96) -> 3.565354079 | J96: =(D96/$B$78)-SUM($H96:I96) -> 4.773411222 | K96: =(E96/$B$78)-SUM($H96:J96) -> 4.932889027 | L96: =(F96/$B$78)-SUM($H96:K96) -> 8.199238579
B97: =B96/$B$78 -> 16.13320175 | C97: =C96/$B$78 -> 19.69855583 | D97: 24.47196705 | E97: 29.40485608 | F97: 37.60409466
A99: Total capacity | B99: No additional spectrum | C99: Current priorities | D99: High priorities | E99: Medium - High Priorities | F99: Medium Priorities | H99: No additional spectrum | I99: Current priorities | J99: High priorities | K99: Medium - High Priorities | L99: Medium Priorities
A100: 2012 | B100: 19548722.99 | C100: 0 | D100: 0 | E100: 0 | F100: 0 | G100: Paste value from D17 | H100: =B100/$B$100 -> 1 | I100: 0 | J100: 0 | K100: 0 | L100: 0
B101: 53568167.62 | C101: =B101 -> 53568167.62 | D101: =C101 -> 53568167.62 | E101: 0 | F101: 0 | G101: Paste value from D24/D38 with modelling year set to 2013 | H101: =B101/$B$100 -> 2.740238718 | I101: 0 | J101: 0 | K101: 0 | L101: 0
B102: =(B$108-B$101)/7+B101 -> 69796990.61 | C102: =(C$108-C$101)/7+C101 -> 74280735.88 | D102: 81021559.37 | E102: 0 | F102: 0 | H102: 3.570411768 | I102: =(C102/$B$100)-SUM($H102:H102) -> 0.2293625662 | J102: =(D102/$B$100)-SUM($H102:I102) -> 0.3448216794 | K102: 0 | L102: 0
B103: =(B$108-B$101)/7+B102 -> 86025813.6 | C103: 94993304.14 | D103: 108474951.1 | E103: 0 | F103: 0 | H103: 4.400584818 | I103: =(C103/$B$100)-SUM($H103:H103) -> 0.4587251325 | J103: =(D103/$B$100)-SUM($H103:I103) -> 0.6896433587 | K103: 0 | L103: 0
B104: 102254636.6 | C104: 115705872.4 | D104: 135928342.9 | E104: 0 | F104: 0 | H104: 5.230757869 | I104: =(C104/$B$100)-SUM($H104:H104) -> 0.6880876987 | J104: =(D104/$B$100)-SUM($H104:I104) -> 1.034465038 | K104: 0 | L104: 0
B105: 118483459.6 | C105: 136418440.7 | D105: 163381734.6 | E105: 0 | F105: 0 | H105: 6.060930919 | I105: =(C105/$B$100)-SUM($H105:H105) -> 0.917450265 | J105: =(D105/$B$100)-SUM($H105:I105) -> 1.379286717 | K105: 0 | L105: 0
B106: 134712282.6 | C106: 157131008.9 | D106: 190835126.4 | E106: 0 | F106: 0 | H106: 6.891103969 | I106: =(C106/$B$100)-SUM($H106:H106) -> 1.146812831 | J106: =(D106/$B$100)-SUM($H106:I106) -> 1.724108397 | K106: 0 | L106: 0
B107: 150941105.6 | C107: 177843577.2 | D107: 218288518.1 | E107: 0 | F107: 0 | H107: 7.721277019 | I107: =(C107/$B$100)-SUM($H107:H107) -> 1.376175397 | J107: =(D107/$B$100)-SUM($H107:I107) -> 2.068930076 | K107: 0 | L107: 0
A108: 2020 | B108: 167169928.5 | C108: 198556145.4 | D108: 245741909.9 | E108: =D108 -> 245741909.9 | F108: 0 | G108: Paste value from D24/D38 with modelling year set to 2020 | H108: 8.55145007 | I108: =(C108/$B$100)-SUM($H108:H108) -> 1.605537964 | J108: =(D108/$B$100)-SUM($H108:I108) -> 2.413751756 | K108: 0 | L108: 0
B109: =(B$113-B$108)/5+B108 -> 195478517.7 | C109: =(C$113-C$108)/5+C108 -> 233785205.6 | D109: 289981874.9 | E109: 308278130.2 | F109: 0 | H109: 9.999554333 | I109: =(C109/$B$100)-SUM($H109:H109) -> 1.95954938 | J109: =(D109/$B$100)-SUM($H109:I109) -> 2.874697714 | K109: =(E109/$B$100)-SUM($H109:J109) -> 0.9359309697 | L109: 0
B110: =(B$113-B$108)/5+B109 -> 223787106.8 | C110: 269014265.9 | D110: 334221840 | E110: 370814350.5 | F110: 0 | H110: 11.4476586 | I110: =(C110/$B$100)-SUM($H110:H110) -> 2.313560795 | J110: =(D110/$B$100)-SUM($H110:I110) -> 3.335643673 | K110: =(E110/$B$100)-SUM($H110:J110) -> 1.871861939 | L110: 0
B111: 252095695.9 | C111: 304243326.1 | D111: 378461805.1 | E111: 433350570.9 | F111: 0 | H111: 12.89576286 | I111: =(C111/$B$100)-SUM($H111:H111) -> 2.667572211 | J111: =(D111/$B$100)-SUM($H111:I111) -> 3.796589632 | K111: =(E111/$B$100)-SUM($H111:J111) -> 2.807792909 | L111: 0
B112: 280404285 | C112: 339472386.3 | D112: 422701770.1 | E112: 495886791.2 | F112: 0 | H112: 14.34386712 | I112: =(C112/$B$100)-SUM($H112:H112) -> 3.021583627 | J112: =(D112/$B$100)-SUM($H112:I112) -> 4.257535591 | K112: =(E112/$B$100)-SUM($H112:J112) -> 3.743723879 | L112: 0
A113: 2025 | B113: 308712874.1 | C113: 374701446.5 | D113: 466941735.2 | E113: 558423011.5 | F113: =E113 -> 558423011.5 | G113: Paste value from D24/D38 with modelling year set to 2025 | H113: 15.79197139 | I113: =(C113/$B$100)-SUM($H113:H113) -> 3.375595043 | J113: =(D113/$B$100)-SUM($H113:I113) -> 4.71848155 | K113: =(E113/$B$100)-SUM($H113:J113) -> 4.679654848 | L113: 0
B114: =(B$118-B$113)/5+B113 -> 363325424.1 | C114: =(C$118-C$113)/5+C113 -> 445432663.2 | D114: 556490307.5 | E114: 671682645.4 | F114: 726919420.3 | H114: 18.58563469 | I114: =(C114/$B$100)-SUM($H114:H114) -> 4.200133128 | J114: =(D114/$B$100)-SUM($H114:I114) -> 5.68106901 | K114: =(E114/$B$100)-SUM($H114:J114) -> 5.8925761 | L114: =(F114/$B$100)-SUM($H114:K114) -> 2.825595052
B115: =(B$118-B$113)/5+B114 -> 417937974.2 | C115: 516163879.9 | D115: 646038879.8 | E115: 784942279.3 | F115: 895415829.2 | H115: 21.379298 | I115: =(C115/$B$100)-SUM($H115:H115) -> 5.024671214 | J115: =(D115/$B$100)-SUM($H115:I115) -> 6.64365647 | K115: =(E115/$B$100)-SUM($H115:J115) -> 7.105497352 | L115: =(F115/$B$100)-SUM($H115:K115) -> 5.651190104
B116: 472550524.3 | C116: 586895096.6 | D116: 735587452.2 | E116: 898201913.1 | F116: 1063912238 | H116: 24.1729613 | I116: =(C116/$B$100)-SUM($H116:H116) -> 5.8492093 | J116: =(D116/$B$100)-SUM($H116:I116) -> 7.60624393 | K116: =(E116/$B$100)-SUM($H116:J116) -> 8.318418604 | L116: =(F116/$B$100)-SUM($H116:K116) -> 8.476785156
B117: 527163074.4 | C117: 657626313.3 | D117: 825136024.5 | E117: 1011461547 | F117: 1232408647 | H117: 26.96662461 | I117: =(C117/$B$100)-SUM($H117:H117) -> 6.673747386 | J117: =(D117/$B$100)-SUM($H117:I117) -> 8.56883139 | K117: =(E117/$B$100)-SUM($H117:J117) -> 9.531339856 | L117: =(F117/$B$100)-SUM($H117:K117) -> 11.30238021
A118: 2030 | B118: 581775624.5 | C118: 728357530 | D118: 914684596.8 | E118: 1124721181 | F118: 1400905056 | G118: Paste value from D24/D38 with modelling year set to 2030 | H118: 29.76028792 | I118: =(C118/$B$100)-SUM($H118:H118) -> 7.498285471 | J118: =(D118/$B$100)-SUM($H118:I118) -> 9.53141885 | K118: =(E118/$B$100)-SUM($H118:J118) -> 10.74426111 | L118: =(F118/$B$100)-SUM($H118:K118) -> 14.12797526
B119: =B118/$B$100 -> 29.76028792 | C119: =C118/$B$100 -> 37.25857339 | D119: 46.78999224 | E119: 57.53425334 | F119: 71.6622286
A121: Frequency Analysis | B121: Base
A122: Sub 1 GHz | B122: 0.2004251766 | C122: =B122/$B$122 -> 1
A123: 1 - 2 GHz | B123: 0.1656331988 | C123: =B123/$B$122 -> 0.8264091446
A124: 2 - 3 GHz | B124: 0.1492784125 | C124: 0.7448086863
A125: 3 - 4 GHz | B125: 0.1435672505 | C125: 0.7163134538
A126: 4 - 6 GHz | B126: 0.1367655188 | C126: 0.6823769402
B127: Paste value from D52
A129: Total capacity - Current priorities | B129: Zero growth | C129: Base Case | D129: High Growth | F129: Zero growth | G129: Base Case | H129: High Growth
A130: 2012 | B130: 19548722.99 | C130: 19548722.99 | D130: 19548722.99 | E130: Paste value from D17 | F130: =B130/$B$130 -> 1 | G130: =C130/$B$130 -> 1 | H130: 1
B131: 52782565.87 | C131: 53568167.62 | D131: 54210559.55 | E131: Paste value from D24/D38 with modelling year set to 2013 | F131: =B131/$B$130 -> 2.70005186 | G131: =C131/$B$130 -> 2.740238718 | H131: =D131/$B$130 -> 2.773099787
B132: =(B$138-B$131)/7+B131 -> 69842967.3 | C132: =(C$138-C$131)/7+C131 -> 74280735.88 | D132: 78360342.23 | F132: =B132/$B$130 -> 3.572763671 | G132: =C132/$B$130 -> 3.799774334 | H132: =D132/$B$130 -> 4.008463483
B133: =(B$138-B$131)/7+B132 -> 86903368.73 | C133: 94993304.14 | D133: 102510124.9 | F133: 4.445475482 | G133: 4.859309951 | H133: 5.24382718
B134: 103963770.2 | C134: 115705872.4 | D134: 126659907.6 | F134: 5.318187292 | G134: 5.918845567 | H134: 6.479190876
B135: 121024171.6 | C135: 136418440.7 | D135: 150809690.3 | F135: 6.190899103 | G135: 6.978381184 | H135: 7.714554572
B136: 138084573 | C136: 157131008.9 | D136: 174959473 | F136: 7.063610913 | G136: 8.0379168 | H136: 8.949918269
B137: 155144974.5 | C137: 177843577.2 | D137: 199109255.7 | F137: 7.936322724 | G137: 9.097452417 | H137: 10.18528197
A138: 2020 | B138: 172205375.9 | C138: 198556145.4 | D138: 223259038.4 | E138: Paste value from D24/D38 with modelling year set to 2020 | F138: 8.809034535 | G138: 10.15698803 | H138: 11.42064566
B139: =(B$143-B$138)/5+B138 -> 195796306.3 | C139: =(C$143-C$138)/5+C138 -> 233785205.6 | D139: 272353913.3 | F139: 10.01581057 | G139: 11.95910371 | H139: 13.93205651
B140: =(B$143-B$138)/5+B139 -> 219387236.7 | C140: 269014265.9 | D140: 321448788.3 | F140: 11.2225866 | G140: 13.76121939 | H140: 16.44346736
B141: 242978167.1 | C141: 304243326.1 | D141: 370543663.2 | F141: 12.42936263 | G141: 15.56333507 | H141: 18.9548782
B142: 266569097.4 | C142: 339472386.3 | D142: 419638538.2 | F142: 13.63613867 | G142: 17.36545075 | H142: 21.46628905
A143: 2025 | B143: 290160027.8 | C143: 374701446.5 | D143: 468733413.1 | E143: Paste value from D24/D38 with modelling year set to 2025 | F143: 14.8429147 | G143: 19.16756643 | H143: 23.9776999
B144: =(B$148-B$143)/5+B143 -> 330135884.3 | C144: =(C$148-C$143)/5+C143 -> 445432663.2 | D144: 586197161 | F144: 16.88784912 | G144: 22.78576782 | H144: 29.98646824
B145: =(B$148-B$143)/5+B144 -> 370111740.9 | C145: 516163879.9 | D145: 703660908.8 | F145: 18.93278354 | G145: 26.40396921 | H145: 35.99523658
B146: 410087597.4 | C146: 586895096.6 | D146: 821124656.6 | F146: 20.97771796 | G146: 30.0221706 | H146: 42.00400492
B147: 450063453.9 | C147: 657626313.3 | D147: 938588404.4 | F147: 23.02265239 | G147: 33.640372 | H147: 48.01277327
A148: 2030 | B148: 490039310.4 | C148: 728357530 | D148: 1056052152 | E148: Paste value from D24/D38 with modelling year set to 2030 | F148: 25.06758681 | G148: 37.25857339 | H148: 54.02154161
